Workbook

Sheet 全体表
G1: 業種別・署別災害発生状況（休業４日以上） | S1: 宮崎労働局
D2: 統計集計日 | E2: ※上段 | G2: 死亡災害：令和6年12月末日現在 | M2: 休業災害：令和6年12月末日現在
D3: 3 | E3: ※下段 | G3: 死亡災害：令和7年12月末日現在 | M3: 休業災害：令和7年12月末日現在
D4: 速報値 | E4: 合計 | H4: 宮崎署 | K4: 延岡署 | N4: 都城署 | Q4: 日南署
E5: 死亡 | F5: 休業 | G5: 計 | H5: 死亡 | I5: 休業 | J5: 計 | K5: 死亡 | L5: 休業 | M5: 計 | N5: 死亡 | O5: 休業 | P5: 計 | Q5: 死亡 | R5: 休業 | S5: 計
B6: ０１製造業 | E6: =H6+K6+N6+Q6 -> 1 | F6: 303 | G6: =SUM(E6:F6) -> 304 | H6: 0 | I6: 109 | J6: =SUM(H6:I6) -> 109 | K6: 1 | L6: 71 | M6: =SUM(K6:L6) -> 72 | N6: 0 | O6: 104 | P6: =SUM(N6:O6) -> 104 | Q6: 0 | R6: 19 | S6: =SUM(Q6:R6) -> 19
E7: =H7+K7+N7+Q7 -> 0 | F7: =I7+L7+O7+R7 -> 283 | G7: =SUM(E7:F7) -> 283 | H7: 0 | I7: 102 | J7: =SUM(H7:I7) -> 102 | K7: 0 | L7: 64 | M7: =SUM(K7:L7) -> 64 | N7: 0 | O7: 97 | P7: =SUM(N7:O7) -> 97 | Q7: 0 | R7: 20 | S7: =SUM(Q7:R7) -> 20
C8: 01食料品 | E8: =H8+K8+N8+Q8 -> 0 | F8: 130 | G8: =SUM(E8:F8) -> 130 | H8: 0 | I8: 49 | J8: 49 | K8: 0 | L8: 25 | M8: 25 | N8: 0 | O8: 52 | P8: 52 | Q8: 0 | R8: 4 | S8: 4
E9: =H9+K9+N9+Q9 -> 0 | F9: =I9+L9+O9+R9 -> 128 | G9: =SUM(E9:F9) -> 128 | H9: 0 | I9: 53 | J9: 53 | K9: 0 | L9: 21 | M9: 21 | N9: 0 | O9: 48 | P9: 48 | Q9: 0 | R9: 6 | S9: 6
C10: 04木材・木製品 | E10: =H10+K10+N10+Q10 -> 0 | F10: 57 | G10: 57 | H10: 0 | I10: 9 | J10: 9 | K10: 0 | L10: 19 | M10: 19 | N10: 0 | O10: 19 | P10: 19 | Q10: 0 | R10: 10 | S10: 10
E11: 0 | F11: =I11+L11+O11+R11 -> 47 | G11: 47 | H11: 0 | I11: 14 | J11: 14 | K11: 0 | L11: 14 | M11: 14 | N11: 0 | O11: 15 | P11: 15 | Q11: 0 | R11: 4 | S11: 4
C12: 09窯業土石 | E12: 0 | F12: 11 | G12: 11 | H12: 0 | I12: 4 | J12: 4 | K12: 0 | L12: 4 | M12: 4 | N12: 0 | O12: 3 | P12: 3 | Q12: 0 | R12: 0 | S12: 0
E13: 0 | F13: =I13+L13+O13+R13 -> 12 | G13: 12 | H13: 0 | I13: 2 | J13: 2 | K13: 0 | L13: 5 | M13: 5 | N13: 0 | O13: 2 | P13: 2 | Q13: 0 | R13: 3 | S13: 3
C14: 12金属製品 | E14: 0 | F14: 9 | G14: 9 | H14: 0 | I14: 5 | J14: 5 | K14: 0 | L14: 2 | M14: 2 | N14: 0 | O14: 1 | P14: 1 | Q14: 0 | R14: 1 | S14: 1
E15: 0 | F15: =I15+L15+O15+R15 -> 12 | G15: 12 | H15: 0 | I15: 2 | J15: 2 | K15: 0 | L15: 3 | M15: 3 | N15: 0 | O15: 5 | P15: 5 | Q15: 0 | R15: 2 | S15: 2
C16: 13～15機械器具 | F16: 30 | G16: 30 | H16: 0 | I16: 16 | J16: 16 | K16: 0 | L16: 8 | M16: 8 | N16: 0 | O16: 5 | P16: 5 | Q16: 0 | R16: 1 | S16: 1
F17: =I17+L17+O17+R17 -> 17 | G17: 17 | H17: 0 | I17: 8 | J17: 8 | K17: 0 | L17: 4 | M17: 4 | N17: 0 | O17: 4 | P17: 4 | Q17: 0 | R17: 1 | S17: 1
B18: ０２鉱業 | E18: 0 | F18: 2 | G18: 2 | H18: 0 | K18: 0 | L18: 1 | M18: 1 | N18: 0 | O18: 1 | P18: 1 | Q18: 0 | R18: 0 | S18: 0
E19: 0 | F19: =I19+L19+O19+R19 -> 1 | G19: 1 | H19: 0 | I19: 0 | J19: 0 | K19: 0 | L19: 1 | M19: 1 | N19: 0 | O19: 0 | P19: 0 | Q19: 0 | R19: 0 | S19: 0
B20: ０３建設業 | E20: 3 | F20: 190 | G20: 193 | H20: 2 | I20: 92 | J20: 94 | K20: 1 | L20: 43 | M20: 44 | N20: 0 | O20: 44 | P20: 44 | Q20: 0 | R20: 11 | S20: 11
E21: 4 | F21: =I21+L21+O21+R21 -> 177 | G21: 181 | H21: 1 | I21: 75 | J21: 76 | K21: 3 | L21: 46 | M21: 49 | N21: 0 | O21: 42 | P21: 42 | Q21: 0 | R21: 14 | S21: 14
C22: 01土木工事 | E22: 1 | F22: 54 | G22: 56 | H22: 1 | I22: 21 | J22: 22 | K22: 1 | L22: 20 | M22: 21 | N22: 0 | O22: 10 | P22: 10 | Q22: 0 | R22: 3 | S22: 3
E23: 4 | F23: =I23+L23+O23+R23 -> 62 | G23: 66 | H23: 1 | I23: 25 | J23: 26 | K23: 3 | L23: 16 | M23: 19 | N23: 0 | O23: 16 | P23: 16 | Q23: 0 | R23: 5 | S23: 5
C24: 02建築工事 | E24: 1 | F24: 91 | G24: 92 | H24: 1 | I24: 50 | J24: 51 | K24: 0 | L24: 12 | M24: 12 | N24: 0 | O24: 23 | P24: 23 | Q24: 0 | R24: 6 | S24: 6
E25: 0 | F25: =I25+L25+O25+R25 -> 79 | G25: 79 | H25: 0 | I25: 36 | J25: 36 | K25: 0 | L25: 18 | M25: 18 | N25: 0 | O25: 19 | P25: 19 | Q25: 0 | R25: 6 | S25: 6
D26: (02-02 | E26: 0 | F26: 17 | G26: 17 | I26: 8 | J26: 8 | L26: 1 | M26: 1 | O26: 6 | P26: 6 | R26: 2 | S26: 2
D27: 木造建築） | E27: 0 | F27: =I27+L27+O27+R27 -> 19 | G27: 19 | I27: 6 | J27: 6 | L27: 5 | M27: 5 | O27: 7 | P27: 7 | R27: 1 | S27: 1
B28: ０４運輸交通業 | E28: 2 | F28: 138 | G28: 140 | H28: 0 | I28: 60 | J28: 60 | K28: 1 | L28: 14 | M28: 15 | N28: 1 | O28: 57 | P28: 58 | Q28: 0 | R28: 7 | S28: 7
E29: 2 | F29: 159 | G29: 161 | H29: 2 | I29: 66 | J29: 68 | K29: 0 | L29: 20 | M29: 20 | N29: 0 | O29: 71 | P29: 71 | Q29: 0 | R29: 2 | S29: 2
C30: 03道路貨物運送 | E30: 2 | F30: 121 | G30: 123 | H30: 0 | I30: 52 | J30: 52 | K30: 1 | L30: 12 | M30: 13 | N30: 1 | O30: 54 | P30: 55 | Q30: 0 | R30: 3 | S30: 3
E31: 1 | F31: 31 | G31: 32 | H31: 1 | I31: 61 | J31: 62 | K31: 0 | L31: 16 | M31: 16 | N31: 0 | O31: 69 | P31: 69 | Q31: 0 | R31: 2 | S31: 2
B32: ０５貨物取扱業 | E32: 0 | F32: 2 | G32: 2 | H32: 0 | I32: 0 | J32: 0 | K32: 0 | L32: 0 | M32: 0 | N32: 0 | O32: 2 | P32: 2 | Q32: 0 | R32: 0 | S32: 0
E33: 0 | F33: =I33+L33+O33+R33 -> 4 | G33: 4 | H33: 0 | I33: 3 | J33: 3 | K33: 0 | L33: 1 | M33: 1 | N33: 0 | O33: 0 | P33: 0 | Q33: 0 | R33: 0 | S33: 0
B34: ０６農林業 | E34: 5 | F34: 106 | G34: 111 | H34: 1 | I34: 35 | J34: 36 | K34: 1 | L34: 30 | M34: 31 | N34: 3 | O34: 23 | P34: 26 | Q34: 0 | R34: 18 | S34: 18
E35: 2 | F35: =I35+L35+O35+R35 -> 92 | G35: 94 | H35: 1 | I35: 23 | J35: 24 | K35: 0 | L35: 32 | M35: 32 | N35: 0 | O35: 21 | P35: 21 | Q35: 1 | R35: 16 | S35: 17
C36: 02林業 | E36: 4 | F36: 64 | G36: 68 | H36: 0 | I36: 13 | J36: 13 | K36: 1 | L36: 28 | M36: 29 | N36: 3 | O36: 10 | P36: 13 | Q36: 0 | R36: 13 | S36: 13
E37: 1 | F37: =I37+L37+O37+R37 -> 61 | G37: 62 | H37: 0 | I37: 8 | J37: 8 | K37: 0 | L37: 30 | M37: 30 | N37: 0 | O37: 10 | P37: 10 | Q37: 1 | R37: 13 | S37: 14
B38: ０７畜産・水産業 | E38: 0 | F38: 59 | G38: 59 | H38: 0 | I38: 23 | J38: 23 | K38: 0 | L38: 3 | M38: 3 | N38: 0 | O38: 30 | P38: 30 | Q38: 0 | R38: 3 | S38: 3
E39: 0 | F39: =I39+L39+O39+R39 -> 62 | G39: 62 | H39: 0 | I39: 23 | J39: 23 | K39: 0 | L39: 6 | M39: 6 | N39: 0 | O39: 29 | P39: 29 | Q39: 0 | R39: 4 | S39: 4
B40: ０８商業 | E40: 1 | F40: 252 | G40: 253 | H40: 1 | I40: 127 | J40: 128 | K40: 0 | L40: 44 | M40: 44 | N40: 0 | O40: 63 | P40: 63 | Q40: 0 | R40: 18 | S40: 18
E41: 1 | F41: 226 | G41: 227 | H41: 0 | I41: 116 | J41: 116 | K41: 0 | L41: 50 | M41: 50 | N41: 1 | O41: 49 | P41: 50 | Q41: 0 | R41: 11 | S41: 11
C42: 02小売 | E42: 1 | F42: 186 | G42: 187 | H42: 1 | I42: 95 | J42: 96 | K42: 0 | L42: 36 | M42: 36 | N42: 0 | O42: 39 | P42: 39 | Q42: 0 | R42: 16 | S42: 16
E43: 1 | F43: 163 | G43: 164 | H43: 0 | I43: 83 | J43: 83 | K43: 0 | L43: 38 | M43: 38 | N43: 1 | O43: 34 | P43: 35 | Q43: 0 | R43: 8 | S43: 8
B44: ０９金融・広告業 | E44: 0 | F44: 9 | G44: 9 | H44: 0 | I44: 4 | J44: 4 | K44: 0 | L44: 2 | M44: 2 | N44: 0 | O44: 2 | P44: 2 | Q44: 0 | R44: 1 | S44: 1
E45: 0 | F45: 8 | G45: 8 | H45: 0 | I45: 5 | J45: 5 | K45: 0 | L45: 2 | M45: 2 | N45: 0 | O45: 1 | P45: 1 | Q45: 0 | R45: 0 | S45: 0
B46: １０映画・演劇業 | E46: 0 | F46: 0 | G46: 0 | H46: 0 | I46: 0 | J46: 0 | K46: 0 | L46: 0 | M46: 0 | N46: 0 | O46: 0 | P46: 0 | Q46: 0 | R46: 0 | S46: 0
E47: 0 | F47: 0 | G47: 0 | H47: 0 | I47: 0 | J47: 0 | K47: 0 | L47: 0 | M47: 0 | N47: 0 | O47: 0 | P47: 0 | Q47: 0 | R47: 0 | S47: 0
B48: １１通信業 | E48: 0 | F48: 20 | G48: 20 | H48: 0 | I48: 6 | J48: 6 | K48: 0 | L48: 8 | M48: 8 | N48: 0 | O48: 4 | P48: 4 | Q48: 0 | R48: 2 | S48: 2
E49: 0 | F49: 12 | G49: 12 | H49: 0 | I49: 7 | J49: 7 | K49: 0 | L49: 2 | M49: 2 | N49: 0 | O49: 3 | P49: 3 | Q49: 0 | R49: 0 | S49: 0
B50: １２教育・研究業 | E50: 0 | F50: 17 | G50: 17 | H50: 0 | I50: 7 | J50: 7 | K50: 0 | L50: 3 | M50: 3 | N50: 0 | O50: 6 | P50: 6 | Q50: 0 | R50: 1 | S50: 1
E51: 0 | F51: 17 | G51: 17 | H51: 0 | I51: 13 | J51: 13 | K51: 0 | L51: 2 | M51: 2 | N51: 0 | O51: 2 | P51: 2 | Q51: 0 | R51: 0 | S51: 0
B52: １３保健衛生業 | E52: 0 | F52: 358 | G52: 358 | H52: 0 | I52: 154 | J52: 154 | K52: 0 | L52: 62 | M52: 62 | N52: 0 | O52: 111 | P52: 111 | Q52: 0 | R52: 31 | S52: 31
E53: 0 | F53: 253 | G53: 253 | H53: 0 | I53: 113 | J53: 113 | K53: 0 | L53: 53 | M53: 53 | N53: 0 | O53: 67 | P53: 67 | Q53: 0 | R53: 20 | S53: 20
C54: 02社会福祉施設 | E54: 0 | F54: 189 | G54: 189 | H54: 0 | I54: 86 | J54: 86 | K54: 0 | L54: 44 | M54: 44 | N54: 0 | O54: 42 | P54: 42 | Q54: 0 | R54: 17 | S54: 17
E55: 0 | F55: 159 | G55: 159 | H55: 0 | I55: 78 | J55: 78 | K55: 0 | L55: 38 | M55: 38 | N55: 0 | O55: 37 | P55: 37 | Q55: 0 | R55: 6 | S55: 6
B56: １４接客娯楽業 | E56: 0 | F56: 84 | G56: 84 | H56: 0 | I56: 51 | J56: 51 | K56: 0 | L56: 11 | M56: 11 | N56: 0 | O56: 17 | P56: 17 | Q56: 0 | R56: 5 | S56: 5
E57: 0 | F57: 88 | G57: 88 | H57: 0 | I57: 45 | J57: 45 | K57: 0 | L57: 12 | M57: 12 | N57: 0 | O57: 26 | P57: 26 | Q57: 0 | R57: 5 | S57: 5
C58: 02飲食店 | E58: 0 | F58: 47 | G58: 47 | H58: 0 | I58: 28 | J58: 28 | K58: 0 | L58: 7 | M58: 7 | N58: 0 | O58: 10 | P58: 10 | Q58: 0 | R58: 2 | S58: 2
E59: 0 | F59: 55 | G59: 55 | H59: 0 | I59: 28 | J59: 28 | K59: 0 | L59: 6 | M59: 6 | N59: 0 | O59: 17 | P59: 17 | Q59: 0 | R59: 4 | S59: 4
B60: １５清掃・と畜業 | F60: 66 | G60: 66 | I60: 41 | J60: 41 | K60: 0 | L60: 8 | M60: 8 | N60: 0 | O60: 14 | P60: 14 | Q60: 0 | R60: 3 | S60: 3
E61: 0 | F61: 62 | G61: 62 | H61: 0 | I61: 37 | J61: 37 | K61: 0 | L61: 5 | M61: 5 | N61: 0 | O61: 20 | P61: 20 | Q61: 0 | R61: 0 | S61: 0
D62: (01-01 | E62: =H62+K62+N62+Q62 -> 0 | F62: 39 | G62: 39 | I62: 27 | J62: 27 | L62: 5 | M62: 5 | O62: 5 | P62: 5 | R62: 2 | S62: 2
D63: ビルメン） | E63: 0 | F63: 25 | G63: 25 | I63: 19 | J63: 19 | L63: 1 | M63: 1 | O63: 5 | P63: 5 | R63: 0 | S63: 0
B64: １６官公署 | E64: 0 | F64: 0 | G64: 0 | H64: 0 | I64: 0 | J64: 0 | K64: 0 | L64: 0 | M64: 0 | N64: 0 | O64: 0 | P64: 0 | Q64: 0 | R64: 0 | S64: 0
E65: 0 | F65: 2 | G65: 2 | H65: 0 | I65: 0 | J65: 0 | K65: 0 | L65: 0 | M65: 0 | N65: 0 | O65: 1 | P65: 1 | Q65: 0 | R65: 1 | S65: 1
B66: １７その他の事業 | E66: 2 | F66: 71 | G66: 73 | H66: 1 | I66: 37 | J66: 38 | K66: 0 | L66: 8 | M66: 8 | N66: 1 | O66: 17 | P66: 18 | Q66: 0 | R66: 9 | S66: 9
E67: 1 | F67: 66 | G67: 67 | H67: 0 | I67: 34 | J67: 34 | K67: 0 | L67: 13 | M67: 13 | N67: 0 | O67: 14 | P67: 14 | Q67: 1 | R67: 5 | S67: 6
B68: 合 計 | E68: 14 | F68: 1677 | G68: 1691 | H68: =H6+H18+H20+H28+H32+H34+H38+H40+H44+H46+H48+H50+H52+H56+H60+H64+H66 -> 5 | I68: =I6+I18+I20+I28+I32+I34+I38+I40+I44+I46+I48+I50+I52+I56+I60+I64+I66 -> 746 | J68: =SUM(H68:I68) -> 751 | K68: =K6+K18+K20+K28+K32+K34+K38+K40+K44+K46+K48+K50+K52+K56+K60+K64+K66 -> 4 | L68: =L6+L18+L20+L28+L32+L34+L38+L40+L44+L46+L48+L50+L52+L56+L60+L64+L66 -> 308 | M68: =SUM(K68:L68) -> 312 | N68: =N6+N18+N20+N28+N32+N34+N38+N40+N44+N46+N48+N50+N52+N56+N60+N64+N66 -> 5 | O68: =O6+O18+O20+O28+O32+O34+O38+O40+O44+O46+O48+O50+O52+O56+O60+O64+O66 -> 495 | P68: =SUM(N68:O68) -> 500 | Q68: =Q6+Q18+Q20+Q28+Q32+Q34+Q38+Q40+Q44+Q46+Q48+Q50+Q52+Q56+Q60+Q64+Q66 -> 0 | R68: =R6+R18+R20+R28+R32+R34+R38+R40+R44+R46+R48+R50+R52+R56+R60+R64+R66 -> 128 | S68: =SUM(Q68:R68) -> 128
E69: 10 | F69: =I69+L69+O69+R69 -> 1512 | G69: =SUM(E69:F69) -> 1522 | H69: =H7+H19+H21+H29+H33+H35+H39+H41+H45+H47+H49+H51+H53+H57+H61+H65+H67 -> 4 | I69: =I7+I19+I21+I29+I33+I35+I39+I41+I45+I47+I49+I51+I53+I57+I61+I65+I67 -> 662 | J69: =SUM(H69:I69) -> 666 | K69: =K7+K19+K21+K29+K33+K35+K39+K41+K45+K47+K49+K51+K53+K57+K61+K65+K67 -> 3 | L69: =L7+L19+L21+L29+L33+L35+L39+L41+L45+L47+L49+L51+L53+L57+L61+L65+L67 -> 309 | M69: =SUM(K69:L69) -> 312 | N69: =N7+N19+N21+N29+N33+N35+N39+N41+N45+N47+N49+N51+N53+N57+N61+N65+N67 -> 1 | O69: =O7+O19+O21+O29+O33+O35+O39+O41+O45+O47+O49+O51+O53+O57+O61+O65+O67 -> 443 | P69: =SUM(N69:O69) -> 444 | Q69: =Q7+Q19+Q21+Q29+Q33+Q35+Q39+Q41+Q45+Q47+Q49+Q51+Q53+Q57+Q61+Q65+Q67 -> 2 | R69: =R7+R19+R21+R29+R33+R35+R39+R41+R45+R47+R49+R51+R53+R57+R61+R65+R67 -> 98 | S69: =SUM(Q69:R69) -> 100
I70: 0 | S70: 資料出所：労働者死傷病報告
I72: 0
I73: 0
I74: 0
I75: 0
I76: 0
F1510: 綾町産業活性化協会

Sheet 増減表
D3: 死亡災害休業災害・増減表 | O3: 死亡災害休業災害・増減表 | Z3: 死亡災害休業災害・増減表 | AK3: 死亡災害休業災害・増減表 | AV3: 死亡災害休業災害・増減表 | BE3: =D7 -> 死亡災害：令和8年3月末日現在
BE4: 林業 | BF4: 建設業 | BG4: 製造業 | BH4: 運輸交通業 | BI4: その他 | BJ4: 計
K5: 宮崎労働局 | V5: 宮崎労働基準監督署 | AG5: 延岡労働基準監督署 | AR5: 都城労働基準監督署 | BC5: 日南労働基準監督署 | BE5: =E25 -> 1 | BF5: =E17 -> 4 | BG5: =E10 -> 0 | BH5: =E21 -> 2 | BI5: =BJ5-SUM(BE5:BH5) -> 3 | BJ5: =E41 -> 10
D7: 死亡災害：令和8年3月末日現在 | H7: 休業災害：令和8年3月末日現在 | O7: =D7 -> 死亡災害：令和8年3月末日現在 | S7: =H7 -> 休業災害：令和8年3月末日現在 | Z7: =D7 -> 死亡災害：令和8年3月末日現在 | AD7: =H7 -> 休業災害：令和8年3月末日現在 | AK7: =D7 -> 死亡災害：令和8年3月末日現在 | AO7: =H7 -> 休業災害：令和8年3月末日現在 | AV7: =D7 -> 死亡災害：令和8年3月末日現在 | AZ7: =H7 -> 休業災害：令和8年3月末日現在
D8: 死亡災害増減表 | H8: 休業災害増減表 | O8: 死亡災害増減表 | S8: 休業災害増減表 | Z8: 死亡災害増減表 | AD8: 休業災害増減表 | AK8: 死亡災害増減表 | AO8: 休業災害増減表 | AV8: 死亡災害増減表 | AZ8: 休業災害増減表
D9: 令和6年 | E9: 令和7年 | F9: 増減 | G9: 増減率 | H9: =D9 -> 令和6年 | I9: =E9 -> 令和7年 | J9: 増減 | K9: 増減率 | O9: =D9 -> 令和6年 | P9: =E9 -> 令和7年 | Q9: 増減 | R9: 増減率 | S9: =O9 -> 令和6年 | T9: =P9 -> 令和7年 | U9: 増減 | V9: 増減率 | Z9: =D9 -> 令和6年 | AA9: =E9 -> 令和7年 | AB9: 増減 | AC9: 増減率 | AD9: =Z9 -> 令和6年 | AE9: =AA9 -> 令和7年 | AF9: 増減 | AG9: 増減率 | AK9: =D9 -> 令和6年 | AL9: =E9 -> 令和7年 | AM9: 増減 | AN9: 増減率 | AO9: =AK9 -> 令和6年 | AP9: =AL9 -> 令和7年 | AQ9: 増減 | AR9: 増減率 | AV9: =D9 -> 令和6年 | AW9: =E9 -> 令和7年 | AX9: 増減 | AY9: 増減率 | AZ9: =AV9 -> 令和6年 | BA9: =AW9 -> 令和7年 | BB9: 増減 | BC9: 増減率
A10: ０１製造業 | D10: 1 | E10: 0 | F10: =E10-D10 -> -1 | G10: =IF(D10=0,IF(E10=0,"－","∞"),F10/D10) -> -1 | H10: 143 | I10: 283 | J10: =I10-H10 -> 140 | K10: =IF(H10=0,IF(I10=0,"－","∞"),J10/H10) -> 0.979020979 | L10: ０１製造業 | O10: 0 | P10: 0 | Q10: =P10-O10 -> 0 | R10: =IF(O10=0,IF(P10=0,"－","∞"),Q10/O10) -> － | S10: 109 | T10: 102 | U10: =T10-S10 -> -7 | V10: =IF(S10=0,IF(T10=0,"－","∞"),U10/S10) -> -0.06422018349 | W10: ０１製造業 | Z10: 1 | AA10: 0 | AB10: =AA10-Z10 -> -1 | AC10: =IF(Z10=0,IF(AA10=0,"－","∞"),AB10/Z10) -> -1 | AD10: 71 | AE10: 64 | AF10: =AE10-AD10 -> -7 | AG10: =IF(AD10=0,IF(AE10=0,"－","∞"),AF10/AD10) -> -0.0985915493 | AH10: ０１製造業 | AK10: 0 | AL10: 0 | AM10: =AL10-AK10 -> 0 | AN10: =IF(AK10=0,IF(AL10=0,"－","∞"),AM10/AK10) -> － | AO10: 104 | AP10: 97 | AQ10: =AP10-AO10 -> -7 | AR10: =IF(AO10=0,IF(AP10=0,"－","∞"),AQ10/AO10) -> -0.06730769231 | AS10: ０１製造業 | AV10: 0 | AW10: 0 | AX10: =AW10-AV10 -> 0 | AY10: =IF(AV10=0,IF(AW10=0,"－","∞"),AX10/AV10) -> － | AZ10: 19 | BA10: 20 | BB10: =BA10-AZ10 -> 1 | BC10: =IF(AZ10=0,IF(BA10=0,"－","∞"),BB10/AZ10) -> 0.05263157895
B11: 01食料品 | D11: 0 | E11: 0 | F11: =E11-D11 -> 0 | G11: － | H11: 66 | I11: 128 | J11: =I11-H11 -> 62 | K11: 0.9393939394 | M11: 01食料品 | O11: 0 | P11: 0 | Q11: 0 | R11: － | S11: 49 | T11: 53 | U11: 4 | V11: 0.08163265306 | X11: 01食料品 | Z11: 0 | AA11: 0 | AB11: 0 | AC11: － | AD11: 25 | AE11: 21 | AF11: -4 | AG11: -0.16 | AI11: 01食料品 | AK11: 0 | AL11: 0 | AM11: 0 | AN11: － | AO11: 52 | AP11: 48 | AQ11: -4 | AR11: -0.07692307692 | AT11: 01食料品 | AV11: 0 | AW11: 0 | AX11: 0 | AY11: － | AZ11: 4 | BA11: 6 | BB11: 2 | BC11: 0.5
B12: 04木材・木製品 | D12: 0 | E12: 0 | F12: 0 | G12: － | H12: 36 | I12: 47 | J12: 11 | K12: 0.3055555556 | M12: 04木材・木製品 | O12: 0 | P12: 0 | Q12: 0 | R12: － | S12: 9 | T12: 14 | U12: 5 | V12: 0.5555555556 | X12: 04木材・木製品 | Z12: 0 | AA12: 0 | AB12: 0 | AC12: － | AD12: 19 | AE12: 14 | AF12: -5 | AG12: -0.2631578947 | AI12: 04木材・木製品 | AK12: 0 | AL12: 0 | AM12: 0 | AN12: － | AO12: 19 | AP12: 15 | AQ12: -4 | AR12: -0.2105263158 | AT12: 04木材・木製品 | AV12: 0 | AW12: 0 | AX12: 0 | AY12: － | AZ12: 10 | BA12: 4 | BB12: -6 | BC12: -0.6
B13: 09窯業土石 | D13: 0 | E13: 0 | F13: 0 | G13: － | H13: 10 | I13: 12 | J13: 2 | K13: 0.2 | M13: 09窯業土石 | O13: 0 | P13: 0 | Q13: 0 | R13: － | S13: 5 | T13: 2 | U13: -3 | V13: -0.6 | X13: 09窯業土石 | Z13: 0 | AA13: 0 | AB13: 0 | AC13: － | AD13: 3 | AE13: 5 | AF13: 2 | AG13: 0.6666666667 | AI13: 09窯業土石 | AK13: 0 | AL13: 0 | AM13: 0 | AN13: － | AO13: 3 | AP13: 2 | AQ13: -1 | AR13: -0.3333333333 | AT13: 09窯業土石 | AV13: 0 | AW13: 0 | AX13: 0 | AY13: － | AZ13: 0 | BA13: 3 | BB13: 3 | BC13: ∞
B14: 12金属製品 | D14: 0 | E14: 0 | F14: 0 | G14: － | H14: 11 | I14: 12 | J14: 1 | K14: 0.09090909091 | M14: 12金属製品 | O14: 0 | P14: 0 | Q14: 0 | R14: － | S14: 6 | T14: 2 | U14: -4 | V14: -0.6666666667 | X14: 12金属製品 | Z14: 0 | AA14: 0 | AB14: 0 | AC14: － | AD14: 2 | AE14: 3 | AF14: 1 | AG14: 0.5 | AI14: 12金属製品 | AK14: 0 | AL14: 0 | AM14: 0 | AN14: － | AO14: 3 | AP14: 5 | AQ14: 2 | AR14: 0.6666666667 | AT14: 12金属製品 | AV14: 0 | AW14: 0 | AX14: 0 | AY14: － | AZ14: 1 | BA14: 2 | BB14: 1 | BC14: 1
B15: 13～15機械器具 | D15: 0 | F15: 0 | G15: － | H15: 18 | I15: 17 | J15: -1 | K15: -0.05555555556 | M15: 13～15機械器具 | O15: 0 | P15: 0 | Q15: 0 | R15: － | S15: 16 | T15: 8 | U15: -8 | V15: -0.5 | X15: 13～15機械器具 | Z15: 0 | AA15: 0 | AB15: 0 | AC15: － | AD15: 8 | AE15: 4 | AF15: -4 | AG15: -0.5 | AI15: 13～15機械器具 | AK15: 0 | AL15: 0 | AM15: 0 | AN15: － | AO15: 5 | AP15: 4 | AQ15: -1 | AR15: -0.2 | AT15: 13～15機械器具 | AV15: 0 | AW15: 0 | AX15: 0 | AY15: － | AZ15: 1 | BA15: 1 | BB15: 0 | BC15: 0
A16: ０２鉱業 | D16: 0 | E16: 0 | F16: 0 | G16: － | H16: 2 | I16: 1 | J16: -1 | K16: -0.5 | L16: ０２鉱業 | O16: 0 | P16: 0 | Q16: 0 | R16: － | S16: 0 | T16: 0 | U16: 0 | V16: － | W16: ０２鉱業 | Z16: 0 | AA16: 0 | AB16: 0 | AC16: － | AD16: 1 | AE16: 1 | AF16: 0 | AG16: 0 | AH16: ０２鉱業 | AK16: 0 | AL16: 0 | AM16: 0 | AN16: － | AO16: 1 | AP16: 0 | AQ16: -1 | AR16: -1 | AS16: ０２鉱業 | AV16: 0 | AW16: 0 | AX16: 0 | AY16: － | AZ16: 0 | BA16: 0 | BB16: 0 | BC16: －
A17: ０３建設業 | D17: 3 | E17: 4 | F17: 1 | G17: 0.3333333333 | H17: 123 | I17: 177 | J17: 54 | K17: 0.4390243902 | L17: ０３建設業 | O17: 2 | P17: 1 | Q17: -1 | R17: -0.5 | S17: 94 | T17: 75 | U17: -19 | V17: -0.2021276596 | W17: ０３建設業 | Z17: 1 | AA17: 3 | AB17: 2 | AC17: 2 | AD17: 43 | AE17: 46 | AF17: 3 | AG17: 0.06976744186 | AH17: ０３建設業 | AK17: 0 | AL17: 0 | AM17: 0 | AN17: － | AO17: 44 | AP17: 42 | AQ17: -2 | AR17: -0.04545454545 | AS17: ０３建設業 | AV17: 0 | AW17: 0 | AX17: 0 | AY17: － | AZ17: 11 | BA17: 14 | BB17: 3 | BC17: 0.2727272727
B18: 01土木工事 | D18: 2 | E18: 4 | F18: 2 | G18: 1 | H18: 41 | I18: 62 | J18: 21 | K18: 0.512195122 | M18: 01土木工事 | O18: 1 | P18: 1 | Q18: 0 | R18: 0 | S18: 21 | T18: 25 | U18: 4 | V18: 0.1904761905 | X18: 01土木工事 | Z18: 1 | AA18: 3 | AB18: 2 | AC18: 2 | AD18: 20 | AE18: 16 | AF18: -4 | AG18: -0.2 | AI18: 01土木工事 | AK18: 0 | AL18: 0 | AM18: 0 | AN18: － | AO18: 10 | AP18: 16 | AQ18: 6 | AR18: 0.6 | AT18: 01土木工事 | AV18: 0 | AW18: 0 | AX18: 0 | AY18: － | AZ18: 3 | BA18: 5 | BB18: 2 | BC18: 0.6666666667
B19: 02建築工事 | D19: 1 | E19: 0 | F19: -1 | G19: -1 | H19: 50 | I19: 79 | J19: 29 | K19: 0.58 | M19: 02建築工事 | O19: 1 | P19: 0 | Q19: -1 | R19: -1 | S19: 52 | T19: 36 | U19: -16 | V19: -0.3076923077 | X19: 02建築工事 | Z19: 0 | AA19: 0 | AB19: 0 | AC19: － | AD19: 12 | AE19: 18 | AF19: 6 | AG19: 0.5 | AI19: 02建築工事 | AK19: 0 | AL19: 0 | AM19: 0 | AN19: － | AO19: 23 | AP19: 19 | AQ19: -4 | AR19: -0.1739130435 | AT19: 02建築工事 | AV19: 0 | AW19: 0 | AX19: 0 | AY19: － | AZ19: 6 | BA19: 6 | BB19: 0 | BC19: 0
C20: (02-02木造建築) | D20: 0 | E20: 0 | F20: 0 | G20: － | H20: 13 | I20: 19 | J20: 6 | K20: 0.4615384615 | N20: (02-02木造建築) | Q20: 0 | R20: － | S20: 9 | T20: 6 | U20: -3 | V20: -0.3333333333 | Y20: (02-02木造建築) | Z20: 1 | AB20: -1 | AC20: -1 | AD20: 1 | AE20: 5 | AF20: 4 | AG20: 4 | AJ20: (02-02木造建築) | AM20: 0 | AN20: － | AO20: 6 | AP20: 7 | AQ20: 1 | AR20: 0.1666666667 | AU20: (02-02木造建築) | AW20: 0 | AX20: 0 | AY20: － | AZ20: 2 | BA20: 1 | BB20: -1 | BC20: -0.5
A21: ０４運輸交通業 | D21: 2 | E21: 2 | F21: 0 | G21: 0 | H21: 89 | I21: 93 | J21: 4 | K21: 0.04494382022 | L21: ０４運輸交通業 | O21: 0 | P21: 2 | Q21: 2 | R21: ∞ | S21: 60 | T21: 66 | U21: 6 | V21: 0.1 | W21: ０４運輸交通業 | Z21: 1 | AA21: 0 | AB21: -1 | AC21: -1 | AD21: 14 | AE21: 20 | AF21: 6 | AG21: 0.4285714286 | AH21: ０４運輸交通業 | AK21: 1 | AL21: 0 | AM21: -1 | AN21: -1 | AO21: 57 | AP21: 71 | AQ21: 14 | AR21: 0.2456140351 | AS21: ０４運輸交通業 | AV21: 0 | AW21: 0 | AX21: 0 | AY21: － | AZ21: 7 | BA21: 2 | BB21: -5 | BC21: -0.7142857143
B22: 03道路貨物運送 | D22: 2 | E22: 1 | F22: -1 | G22: -0.5 | H22: 83 | I22: 31 | J22: -52 | K22: -0.6265060241 | M22: 03道路貨物運送 | O22: 0 | P22: 1 | Q22: 1 | R22: ∞ | S22: 52 | T22: 61 | U22: 9 | V22: 0.1730769231 | X22: 03道路貨物運送 | Z22: 1 | AA22: 0 | AB22: -1 | AC22: -1 | AD22: 12 | AE22: 16 | AF22: 4 | AG22: 0.3333333333 | AI22: 03道路貨物運送 | AK22: 1 | AL22: 0 | AM22: -1 | AN22: -1 | AO22: 54 | AP22: 69 | AQ22: 15 | AR22: 0.2777777778 | AT22: 03道路貨物運送 | AV22: 0 | AW22: 0 | AX22: 0 | AY22: － | AZ22: 3 | BA22: 2 | BB22: -1 | BC22: -0.3333333333
A23: ０５貨物取扱業 | D23: 0 | E23: 0 | F23: 0 | G23: － | H23: 2 | I23: 4 | J23: 2 | K23: 1 | L23: ０５貨物取扱業 | O23: 0 | P23: 0 | Q23: 0 | R23: － | S23: 0 | T23: 3 | U23: 3 | V23: ∞ | W23: ０５貨物取扱業 | Z23: 0 | AA23: 0 | AB23: 0 | AC23: － | AD23: 0 | AE23: 1 | AF23: 1 | AG23: ∞ | AH23: ０５貨物取扱業 | AK23: 0 | AL23: 0 | AM23: 0 | AN23: － | AO23: 2 | AP23: 0 | AQ23: -2 | AR23: -1 | AS23: ０５貨物取扱業 | AV23: 0 | AW23: 0 | AX23: 0 | AY23: － | AZ23: 0 | BA23: 0 | BB23: 0 | BC23: － | BE23: =H7 -> 休業災害：令和8年3月末日現在
A24: ０６農林業 | D24: 5 | E24: 2 | F24: -3 | G24: -0.6 | H24: 67 | I24: 92 | J24: 25 | K24: 0.3731343284 | L24: ０６農林業 | O24: 1 | P24: 1 | Q24: 0 | R24: 0 | S24: 35 | T24: 23 | U24: -12 | V24: -0.3428571429 | W24: ０６農林業 | Z24: 1 | AA24: 0 | AB24: -1 | AC24: -1 | AD24: 30 | AE24: 32 | AF24: 2 | AG24: 0.06666666667 | AH24: ０６農林業 | AK24: 3 | AL24: 0 | AM24: -3 | AN24: -1 | AO24: 23 | AP24: 21 | AQ24: -2 | AR24: -0.08695652174 | AS24: ０６農林業 | AV24: 0 | AW24: 1 | AX24: 1 | AY24: ∞ | AZ24: 17 | BA24: 16 | BB24: -1 | BC24: -0.05882352941 | BE24: 林業 | BF24: 建設業 | BG24: 製造業 | BH24: 運輸交通業 | BI24: その他 | BJ24: 計
B25: 02林業 | D25: 4 | E25: 1 | F25: -3 | G25: -0.75 | H25: 47 | I25: 61 | J25: 14 | K25: 0.2978723404 | M25: 02林業 | O25: 0 | P25: 0 | Q25: 0 | R25: － | S25: 13 | T25: 8 | U25: -5 | V25: -0.3846153846 | X25: 02林業 | Z25: 1 | AA25: 0 | AB25: -1 | AC25: -1 | AD25: 28 | AE25: 30 | AF25: 2 | AG25: 0.07142857143 | AI25: 02林業 | AK25: 3 | AL25: 0 | AM25: -3 | AN25: -1 | AO25: 10 | AP25: 10 | AQ25: 0 | AR25: 0 | AT25: 02林業 | AV25: 0 | AW25: 1 | AX25: 1 | AY25: ∞ | AZ25: 12 | BA25: 13 | BB25: 1 | BC25: 0.08333333333 | BE25: =I25 -> 61 | BF25: =I17 -> 177 | BG25: =I10 -> 283 | BH25: =I21 -> 93 | BI25: =BJ25-SUM(BE25:BH25) -> 898 | BJ25: =I41 -> 1512
A26: ０７畜産・水産業 | D26: 0 | E26: 0 | F26: 0 | G26: － | H26: 38 | I26: 62 | J26: 24 | K26: 0.6315789474 | L26: ０７畜産・水産業 | O26: 0 | P26: 0 | Q26: 0 | R26: － | S26: 23 | T26: 23 | U26: 0 | V26: 0 | W26: ０７畜産・水産業 | Z26: 0 | AA26: 0 | AB26: 0 | AC26: － | AD26: 3 | AE26: 6 | AF26: 3 | AG26: 1 | AH26: ０７畜産・水産業 | AK26: 0 | AL26: 0 | AM26: 0 | AN26: － | AO26: 30 | AP26: 29 | AQ26: -1 | AR26: -0.03333333333 | AS26: ０７畜産・水産業 | AV26: 0 | AW26: 0 | AX26: 0 | AY26: － | AZ26: 3 | BA26: 4 | BB26: 1 | BC26: 0.3333333333
A27: ０８商業 | D27: 1 | E27: 1 | F27: 0 | G27: 0 | H27: 137 | I27: 226 | J27: 89 | K27: 0.6496350365 | L27: ０８商業 | O27: 1 | P27: 0 | Q27: -1 | R27: -1 | S27: 127 | T27: 116 | U27: -11 | V27: -0.08661417323 | W27: ０８商業 | Z27: 0 | AA27: 0 | AB27: 0 | AC27: － | AD27: 44 | AE27: 50 | AF27: 6 | AG27: 0.1363636364 | AH27: ０８商業 | AK27: 0 | AL27: 1 | AM27: 1 | AN27: ∞ | AO27: 63 | AP27: 49 | AQ27: -14 | AR27: -0.2222222222 | AS27: ０８商業 | AV27: 0 | AX27: 0 | AY27: － | AZ27: 18 | BA27: 11 | BB27: -7 | BC27: -0.3888888889
B28: 02小売業 | E28: 1 | F28: 1 | G28: ∞ | H28: 101 | I28: 163 | J28: 62 | K28: 0.6138613861 | M28: 02小売業 | O28: 1 | P28: 0 | Q28: -1 | R28: -1 | S28: 95 | T28: 83 | U28: -12 | V28: -0.1263157895 | X28: 02小売業 | Z28: 0 | AA28: 0 | AB28: 0 | AC28: － | AD28: 36 | AE28: 38 | AF28: 2 | AG28: 0.05555555556 | AI28: 02小売業 | AK28: 0 | AL28: 1 | AM28: 1 | AN28: ∞ | AO28: 39 | AP28: 34 | AQ28: -5 | AR28: -0.1282051282 | AT28: 02小売業 | AV28: 0 | AW28: 0 | AX28: 0 | AY28: － | AZ28: 16 | BA28: 8 | BB28: -8 | BC28: -0.5
A29: ０９金融・広告業 | D29: 0 | E29: 0 | F29: 0 | G29: － | H29: 6 | I29: 8 | J29: 2 | K29: 0.3333333333 | L29: ０９金融・広告業 | O29: 0 | P29: 0 | Q29: 0 | R29: － | S29: 4 | T29: 5 | U29: 1 | V29: 0.25 | W29: ０９金融・広告業 | Z29: 0 | AA29: 0 | AB29: 0 | AC29: － | AD29: 2 | AE29: 2 | AF29: 0 | AG29: 0 | AH29: ０９金融・広告業 | AK29: 0 | AL29: 0 | AM29: 0 | AN29: － | AO29: 2 | AP29: 1 | AQ29: -1 | AR29: -0.5 | AS29: ０９金融・広告業 | AV29: 0 | AW29: 0 | AX29: 0 | AY29: － | AZ29: 1 | BA29: 0 | BB29: -1 | BC29: -1
A30: １０映画・演劇業 | D30: 0 | E30: 0 | F30: 0 | G30: － | H30: 0 | I30: 0 | J30: 0 | K30: － | L30: １０映画・演劇業 | O30: 0 | P30: 0 | Q30: 0 | R30: － | S30: 0 | T30: 0 | U30: 0 | V30: － | W30: １０映画・演劇業 | Z30: 0 | AA30: 0 | AB30: 0 | AC30: － | AD30: 0 | AE30: 0 | AF30: 0 | AG30: － | AH30: １０映画・演劇業 | AK30: 0 | AL30: 0 | AM30: 0 | AN30: － | AO30: 0 | AP30: 0 | AQ30: 0 | AR30: － | AS30: １０映画・演劇業 | AV30: 0 | AW30: 0 | AX30: 0 | AY30: － | AZ30: 0 | BA30: 0 | BB30: 0 | BC30: －
A31: １１通信業 | D31: 0 | E31: 0 | F31: 0 | G31: － | H31: 20 | I31: 12 | J31: -8 | K31: -0.4 | L31: １１通信業 | O31: 0 | P31: 0 | Q31: 0 | R31: － | S31: 6 | T31: 7 | U31: 1 | V31: 0.1666666667 | W31: １１通信業 | Z31: 0 | AA31: 0 | AB31: 0 | AC31: － | AD31: 8 | AE31: 2 | AF31: -6 | AG31: -0.75 | AH31: １１通信業 | AK31: 0 | AL31: 0 | AM31: 0 | AN31: － | AO31: 4 | AP31: 3 | AQ31: -1 | AR31: -0.25 | AS31: １１通信業 | AV31: 0 | AW31: 0 | AX31: 0 | AY31: － | AZ31: 2 | BA31: 0 | BB31: -2 | BC31: -1
A32: １２教育・研究業 | D32: 0 | E32: 0 | F32: 0 | G32: － | H32: 7 | I32: 17 | J32: 10 | K32: 1.428571429 | L32: １２教育・研究業 | O32: 0 | P32: 0 | Q32: 0 | R32: － | S32: 7 | T32: 13 | U32: 6 | V32: 0.8571428571 | W32: １２教育・研究業 | Z32: 0 | AA32: 0 | AB32: 0 | AC32: － | AD32: 3 | AE32: 2 | AF32: -1 | AG32: -0.3333333333 | AH32: １２教育・研究業 | AK32: 0 | AL32: 0 | AM32: 0 | AN32: － | AO32: 6 | AP32: 2 | AQ32: -4 | AR32: -0.6666666667 | AS32: １２教育・研究業 | AV32: 0 | AW32: 0 | AX32: 0 | AY32: － | AZ32: 1 | BA32: 0 | BB32: -1 | BC32: -1
A33: １３保健衛生業 | D33: 0 | E33: 0 | F33: 0 | G33: － | H33: 387 | I33: 253 | J33: -134 | K33: -0.34625323 | L33: １３保健衛生業 | O33: 0 | P33: 0 | Q33: 0 | R33: － | S33: 154 | T33: 113 | U33: -41 | V33: -0.2662337662 | W33: １３保健衛生業 | Z33: 0 | AA33: 0 | AB33: 0 | AC33: － | AD33: 63 | AE33: 53 | AF33: -10 | AG33: -0.1587301587 | AH33: １３保健衛生業 | AK33: 0 | AL33: 0 | AM33: 0 | AN33: － | AO33: 111 | AP33: 67 | AQ33: -44 | AR33: -0.3963963964 | AS33: １３保健衛生業 | AV33: 0 | AW33: 0 | AX33: 0 | AY33: － | AZ33: 31 | BA33: 20 | BB33: -11 | BC33: -0.3548387097
B34: 02社会福祉施設 | D34: 0 | E34: 0 | F34: =E34-D34 -> 0 | G34: =IF(D34=0,IF(E34=0,"－","∞"),F34/D34) -> － | H34: 148 | I34: 159 | J34: =I34-H34 -> 11 | K34: =IF(H34=0,IF(I34=0,"－","∞"),J34/H34) -> 0.07432432432 | M34: 02社会福祉施設 | O34: 0 | P34: 0 | Q34: 0 | R34: =IF(O34=0,IF(P34=0,"－","∞"),Q34/O34) -> － | S34: 86 | T34: 78 | U34: -8 | V34: -0.09302325581 | X34: 02社会福祉施設 | Z34: 0 | AA34: 0 | AB34: 0 | AC34: =IF(Z34=0,IF(AA34=0,"－","∞"),AB34/Z34) -> － | AD34: 45 | AE34: 38 | AF34: =AE34-AD34 -> -7 | AG34: =IF(AD34=0,IF(AE34=0,"－","∞"),AF34/AD34) -> -0.1555555556 | AI34: 02社会福祉施設 | AK34: 0 | AL34: 0 | AM34: =AL34-AK34 -> 0 | AN34: =IF(AK34=0,IF(AL34=0,"－","∞"),AM34/AK34) -> － | AO34: 42 | AP34: 37 | AQ34: =AP34-AO34 -> -5 | AR34: =IF(AO34=0,IF(AP34=0,"－","∞"),AQ34/AO34) -> -0.119047619 | AT34: 02社会福祉施設 | AV34: 0 | AW34: 0 | AX34: =AW34-AV34 -> 0 | AY34: =IF(AV34=0,IF(AW34=0,"－","∞"),AX34/AV34) -> － | AZ34: 17 | BA34: 6 | BB34: =BA34-AZ34 -> -11 | BC34: =IF(AZ34=0,IF(BA34=0,"－","∞"),BB34/AZ34) -> -0.6470588235
A35: １４接客娯楽業 | D35: 0 | E35: 0 | F35: 0 | G35: － | H35: 63 | I35: 88 | J35: 25 | K35: 0.3968253968 | L35: １４接客娯楽業 | O35: 0 | P35: 0 | Q35: 0 | R35: － | S35: 51 | T35: 45 | U35: -6 | V35: -0.1176470588 | W35: １４接客娯楽業 | Z35: 0 | AA35: 0 | AB35: 0 | AC35: － | AD35: 11 | AE35: 12 | AF35: 1 | AG35: 0.09090909091 | AH35: １４接客娯楽業 | AK35: 0 | AL35: 0 | AM35: 0 | AN35: － | AO35: 17 | AP35: 26 | AQ35: 9 | AR35: 0.5294117647 | AS35: １４接客娯楽業 | AV35: 0 | AW35: 0 | AX35: 0 | AY35: － | AZ35: 5 | BA35: 5 | BB35: 0 | BC35: 0
B36: 02飲食店 | D36: 0 | E36: 0 | F36: =E36-D36 -> 0 | G36: =IF(D36=0,IF(E36=0,"－","∞"),F36/D36) -> － | H36: 38 | I36: 55 | J36: =I36-H36 -> 17 | K36: =IF(H36=0,IF(I36=0,"－","∞"),J36/H36) -> 0.4473684211 | M36: 02飲食店 | O36: 0 | P36: 0 | Q36: =P36-O36 -> 0 | R36: =IF(O36=0,IF(P36=0,"－","∞"),Q36/O36) -> － | S36: 28 | T36: 28 | U36: =T36-S36 -> 0 | V36: =IF(S36=0,IF(T36=0,"－","∞"),U36/S36) -> 0 | X36: 02飲食店 | Z36: 0 | AA36: 0 | AB36: =AA36-Z36 -> 0 | AC36: =IF(Z36=0,IF(AA36=0,"－","∞"),AB36/Z36) -> － | AD36: 7 | AE36: 6 | AF36: =AE36-AD36 -> -1 | AG36: =IF(AD36=0,IF(AE36=0,"－","∞"),AF36/AD36) -> -0.1428571429 | AI36: 02飲食店 | AK36: 0 | AL36: 0 | AM36: =AL36-AK36 -> 0 | AN36: =IF(AK36=0,IF(AL36=0,"－","∞"),AM36/AK36) -> － | AO36: 10 | AP36: 17 | AQ36: =AP36-AO36 -> 7 | AR36: =IF(AO36=0,IF(AP36=0,"－","∞"),AQ36/AO36) -> 0.7 | AT36: 02飲食店 | AV36: 0 | AW36: 0 | AX36: =AW36-AV36 -> 0 | AY36: =IF(AV36=0,IF(AW36=0,"－","∞"),AX36/AV36) -> － | AZ36: 2 | BA36: 4 | BB36: =BA36-AZ36 -> 2 | BC36: =IF(AZ36=0,IF(BA36=0,"－","∞"),BB36/AZ36) -> 1
A37: １５清掃・と畜業 | D37: 0 | E37: 0 | F37: 0 | G37: － | H37: 38 | I37: 62 | J37: 24 | K37: 0.6315789474 | L37: １５清掃・と畜業 | O37: 0 | P37: 0 | Q37: 0 | R37: － | S37: 41 | T37: 37 | U37: -4 | V37: -0.09756097561 | W37: １５清掃・と畜業 | Z37: 0 | AA37: 0 | AB37: 0 | AC37: － | AD37: 8 | AE37: 5 | AF37: -3 | AG37: -0.375 | AH37: １５清掃・と畜業 | AK37: 0 | AL37: 0 | AM37: 0 | AN37: － | AO37: 14 | AP37: 20 | AQ37: 6 | AR37: 0.4285714286 | AS37: １５清掃・と畜業 | AV37: 0 | AW37: 0 | AX37: 0 | AY37: － | AZ37: 3 | BA37: 0 | BB37: -3 | BC37: -1
C38: (01-01ビルメン) | D38: 0 | E38: 0 | F38: 0 | G38: － | H38: 24 | I38: 25 | J38: 1 | K38: 0.04166666667 | N38: (01-01ビルメン) | Q38: =P38-O38 -> 0 | R38: － | S38: 27 | T38: 19 | U38: -8 | V38: -0.2962962963 | Y38: (01-01ビルメン) | AB38: =AA38-Z38 -> 0 | AC38: － | AD38: 5 | AE38: 1 | AF38: -4 | AG38: -0.8 | AJ38: (01-01ビルメン) | AM38: 0 | AN38: － | AO38: 5 | AP38: 5 | AQ38: 0 | AR38: 0 | AU38: (01-01ビルメン) | AX38: 0 | AY38: － | AZ38: 2 | BA38: 0 | BB38: -2 | BC38: -1
A39: １６官公署 | D39: 0 | E39: 0 | F39: 0 | G39: － | H39: 0 | I39: 2 | J39: 2 | K39: ∞ | L39: １６官公署 | O39: 0 | P39: 0 | Q39: 0 | R39: － | S39: 0 | T39: 0 | U39: 0 | V39: － | W39: １６官公署 | Z39: 0 | AA39: 0 | AB39: 0 | AC39: － | AD39: 0 | AE39: 0 | AF39: 0 | AG39: － | AH39: １６官公署 | AK39: 0 | AL39: 0 | AM39: 0 | AN39: － | AO39: 0 | AP39: 1 | AQ39: 1 | AR39: ∞ | AS39: １６官公署 | AV39: 0 | AW39: 0 | AX39: 0 | AY39: － | AZ39: 0 | BA39: 1 | BB39: 1 | BC39: ∞
A40: １７その他の事業 | D40: 2 | E40: 1 | F40: -1 | G40: -0.5 | H40: 48 | I40: 66 | J40: 18 | K40: 0.375 | L40: １７その他の事業 | O40: 1 | P40: 0 | Q40: -1 | R40: -1 | S40: 37 | T40: 34 | U40: -3 | V40: -0.08108108108 | W40: １７その他の事業 | Z40: 0 | AA40: 0 | AB40: 0 | AC40: － | AD40: 8 | AE40: 13 | AF40: 5 | AG40: 0.625 | AH40: １７その他の事業 | AK40: 1 | AL40: 0 | AM40: -1 | AN40: -1 | AO40: 17 | AP40: 14 | AQ40: -3 | AR40: -0.1764705882 | AS40: １７その他の事業 | AV40: 0 | AW40: 1 | AX40: 1 | AY40: ∞ | AZ40: 9 | BA40: 5 | BB40: -4 | BC40: -0.4444444444
A41: 合計 | D41: 14 | E41: 10 | F41: -4 | G41: -0.2857142857 | H41: 1680 | I41: 1512 | J41: -168 | K41: -0.1 | L41: 合計 | O41: 5 | P41: 4 | Q41: -1 | R41: -0.2 | S41: 748 | T41: 662 | U41: -86 | V41: -0.114973262 | W41: 合計 | Z41: 4 | AA41: 3 | AB41: -1 | AC41: -0.25 | AD41: 309 | AE41: 309 | AF41: 0 | AG41: 0 | AH41: 合計 | AK41: 5 | AL41: 1 | AM41: -4 | AN41: -0.8 | AO41: 496 | AP41: 443 | AQ41: -53 | AR41: -0.1068548387 | AS41: 合計 | AV41: 0 | AW41: 2 | AX41: 2 | AY41: ∞ | AZ41: 127 | BA41: 98 | BB41: -29 | BC41: -0.2283464567

Sheet 派遣業
A1: 令和7年 業種別署別 派遣先労働災害発生状況
M3: 死傷災害：令和7年12月末日現在
D4: 合計 | F4: 宮崎署 | H4: 延岡署 | J4: 都城署 | L4: 日南署
A5: ０１製造業 | D5: =SUM(F5+H5+J5+L5) -> 13 | E5: =SUM(G5+I5+K5+M5) -> 0 | F5: 11 | G5: 0 | H5: 1 | I5: 0 | J5: 1 | K5: 0 | L5: 0 | M5: 0
B6: 01食料品 | D6: 8 | E6: 0 | F6: 7 | G6: 0 | H6: 0 | I6: 0 | J6: 1 | K6: 0 | L6: 0 | M6: 0
B7: 04木材・木製品 | D7: 1 | E7: 0 | F7: 1 | G7: 0 | H7: 0 | I7: 0 | J7: 0 | K7: 0 | L7: 0 | M7: 0
B8: 09窯業土石 | D8: 0 | E8: 0 | F8: 0 | G8: 0 | H8: 0 | I8: 0 | J8: 0 | K8: 0 | L8: 0 | M8: 0
B9: 12金属製品 | D9: 0 | E9: 0 | F9: 0 | G9: 0 | H9: 0 | I9: 0 | J9: 0 | K9: 0 | L9: 0 | M9: 0
B10: 13～15機械器具 | D10: 1 | E10: 0 | F10: 1 | G10: 0 | H10: 0 | I10: 0 | J10: 0 | K10: 0 | L10: 0 | M10: 0
A11: ０２鉱業 | D11: 0 | E11: 0 | F11: 0 | G11: 0 | H11: 0 | I11: 0 | J11: 0 | K11: 0 | L11: 0 | M11: 0
A12: ０３建設業 | D12: 0 | E12: 0 | F12: 0 | G12: 0 | H12: 0 | I12: 0 | J12: 0 | K12: 0 | L12: 0 | M12: 0
B13: 01土木工事 | D13: 0 | E13: 0 | F13: 0 | G13: 0 | H13: 0 | I13: 0 | J13: 0 | K13: 0 | L13: 0 | M13: 0
B14: 02建築工事 | D14: 0 | E14: 0 | F14: 0 | G14: 0 | H14: 0 | I14: 0 | J14: 0 | K14: 0 | L14: 0 | M14: 0
C15: (02-02木造建築) | D15: 0 | E15: 0 | F15: 0 | G15: 0 | H15: 0 | I15: 0 | J15: 0 | K15: 0 | L15: 0 | M15: 0
A16: ０４運輸交通業 | D16: 2 | E16: 0 | F16: 0 | G16: 0 | H16: 0 | I16: 0 | J16: 2 | K16: 0 | L16: 0 | M16: 0
B17: 03道路貨物運送 | D17: 2 | E17: 0 | F17: 0 | G17: 0 | H17: 0 | I17: 0 | J17: 2 | K17: 0 | L17: 0 | M17: 0
A18: ０５貨物取扱業 | D18: 0 | E18: 0 | F18: 0 | G18: 0 | H18: 0 | I18: 0 | J18: 0 | K18: 0 | L18: 0 | M18: 0
A19: ０６農林業 | D19: 0 | E19: 0 | F19: 0 | G19: 0 | H19: 0 | I19: 0 | J19: 0 | K19: 0 | L19: 0 | M19: 0
B20: 02林業 | D20: 0 | E20: 0 | F20: 0 | G20: 0 | H20: 0 | I20: 0 | J20: 0 | K20: 0 | L20: 0 | M20: 0
A21: ０７畜産・水産業 | D21: =SUM(F21+H21+J21+L21) -> 0 | E21: 0 | F21: 0 | G21: 0 | H21: 0 | I21: 0 | J21: 0 | K21: 0 | L21: 0 | M21: 0
A22: ０８商業 | D22: 7 | E22: 0 | F22: 5 | G22: 0 | H22: 0 | I22: 0 | J22: 1 | K22: 0 | L22: 1 | M22: 0
B23: 02小売業 | D23: 5 | E23: 0 | F23: 3 | G23: 0 | H23: 0 | I23: 0 | J23: 1 | K23: 0 | L23: 1 | M23: 0
A24: ０９金融・広告業 | D24: 0 | E24: 0 | F24: 0 | G24: 0 | H24: 0 | I24: 0 | J24: 0 | K24: 0 | L24: 0 | M24: 0
A25: １０映画・演劇業 | D25: 0 | E25: 0 | F25: 0 | G25: 0 | H25: 0 | I25: 0 | J25: 0 | K25: 0 | L25: 0 | M25: 0
A26: １１通信業 | D26: 0 | E26: 0 | F26: 0 | G26: 0 | H26: 0 | I26: 0 | J26: 0 | K26: 0 | L26: 0 | M26: 0
A27: １２教育・研究業 | D27: 0 | E27: 0 | F27: 0 | G27: 0 | H27: 0 | I27: 0 | J27: 0 | K27: 0 | L27: 0 | M27: 0
A28: １３保健衛生業 | D28: 8 | E28: 0 | F28: 5 | G28: 0 | H28: 0 | I28: 0 | J28: 3 | K28: 0 | L28: 0 | M28: 0
B29: 02社会福祉施設 | D29: 3 | E29: 0 | F29: 3 | G29: 0 | H29: 0 | I29: 0 | J29: 0 | K29: 0 | L29: 0 | M29: 0
A30: １４接客娯楽業 | D30: 1 | E30: 0 | F30: 1 | G30: 0 | H30: 0 | I30: 0 | J30: 0 | K30: 0 | L30: 0 | M30: 0
B31: 02飲食店 | D31: =SUM(F31+H31+J31+L31) -> 0 | E31: =SUM(G31+I31+K31+M31) -> 0 | F31: 0 | G31: 0 | H31: 0 | I31: 0 | J31: 0 | K31: 0 | L31: 0 | M31: 0
A32: １５清掃・と畜業 | D32: 3 | E32: 0 | F32: 2 | G32: 0 | H32: 0 | I32: 0 | J32: 1 | K32: 0 | L32: 0 | M32: 0
C33: (01-01ビルメン) | D33: 1 | E33: 0 | F33: 1 | G33: 0 | H33: 0 | I33: 0 | J33: 0 | K33: 0 | L33: 0 | M33: 0
A34: １６官公署 | D34: 0 | E34: 0 | F34: 0 | G34: 0 | H34: 0 | I34: 0 | J34: 0 | K34: 0 | L34: 0 | M34: 0
A35: １７その他の事業 | D35: 1 | E35: 0 | F35: 1 | G35: 0 | H35: 0 | I35: 0 | J35: 0 | K35: 0 | L35: 0 | M35: 0
A36: 合計 | D36: 35 | E36: 0 | F36: =SUM(F5+F11+F12+F16+F18+F19+F21+F22+F24+F25+F26+F27+F28+F30+F32+F34+F35) -> 25 | G36: =SUM(G5+G11+G12+G16+G18+G19+G21+G22+G24+G25+G26+G27+G28+G30+G32+G34+G35) -> 0 | H36: =SUM(H5+H11+H12+H16+H18+H19+H21+H22+H24+H25+H26+H27+H28+H30+H32+H34+H35) -> 1 | I36: 0 | J36: =SUM(J5+J11+J12+J16+J18+J19+J21+J22+J24+J25+J26+J27+J28+J30+J32+J34+J35) -> 8 | K36: 0 | L36: 1 | M36: 0

Sheet 外国人
A1: 令和7年 業種別署別 外国人労働災害発生状況
K3: 死傷災害：令和7年12月末日現在
B4: 合計 | D4: 宮崎署 | F4: 延岡署 | H4: 都城署 | J4: 日南署
A5: 中国（香港等を含む） | B5: =SUM(D5+F5+H5+J5) -> 4 | C5: =SUM(E5+G5+I5+K5) -> 0 | D5: 0 | E5: 0 | F5: 1 | G5: 0 | H5: 3 | I5: 0 | J5: 0 | K5: 0
A6: 韓国 | B6: =SUM(D6+F6+H6+J6) -> 0 | C6: =SUM(E6+G6+I6+K6) -> 0 | D6: 0 | E6: 0 | F6: 0 | G6: 0 | H6: 0 | I6: 0 | J6: 0 | K6: 0
A7: 台湾 | B7: =SUM(D7+F7+H7+J7) -> 0 | C7: 0 | D7: 0 | E7: 0 | F7: 0 | G7: 0 | H7: 0 | I7: 0 | J7: 0 | K7: 0
A8: フィリピン | B8: 2 | C8: 0 | D8: 0 | E8: 0 | F8: 0 | G8: 0 | H8: 2 | I8: 0 | J8: 0 | K8: 0
A9: タイ | B9: 0 | C9: 0 | D9: 0 | E9: 0 | F9: 0 | G9: 0 | H9: 0 | I9: 0 | J9: 0 | K9: 0
A10: ベトナム | B10: 17 | C10: 0 | D10: 12 | E10: 0 | F10: 0 | G10: 0 | H10: 5 | I10: 0 | J10: 0 | K10: 0
A11: インドネシア | B11: 14 | C11: 0 | D11: 3 | E11: 0 | F11: 3 | G11: 0 | H11: 6 | I11: 0 | J11: 2 | K11: 0
A12: マレーシア | B12: 0 | C12: 0 | D12: 0 | E12: 0 | F12: 0 | G12: 0 | H12: 0 | I12: 0 | J12: 0 | K12: 0
A13: ミャンマー | B13: 1 | C13: 0 | D13: 0 | E13: 0 | F13: 1 | G13: 0 | H13: 0 | I13: 0 | J13: 0 | K13: 0
A14: カンボジア | B14: 0 | C14: 0 | D14: 0 | E14: 0 | F14: 0 | G14: 0 | H14: 0 | I14: 0 | J14: 0 | K14: 0
A15: ラオス | D15: 0 | E15: 0 | F15: 0 | G15: 0 | H15: 0 | I15: 0 | J15: 0 | K15: 0
A16: シンガポール | B16: 0 | C16: 0 | D16: 0 | E16: 0 | F16: 0 | G16: 0 | H16: 0 | I16: 0 | J16: 0 | K16: 0
A17: ブルネイ | D17: 0 | E17: 0 | F17: 0 | G17: 0 | H17: 0 | I17: 0 | J17: 0 | K17: 0
A18: インド | B18: 0 | C18: 0 | D18: 0 | E18: 0 | F18: 0 | G18: 0 | H18: 0 | I18: 0 | J18: 0 | K18: 0
A19: バングラデシュ | B19: 0 | C19: 0 | D19: 0 | E19: 0 | F19: 0 | G19: 0 | H19: 0 | I19: 0 | J19: 0 | K19: 0
A20: パキスタン | B20: 0 | C20: 0 | D20: 0 | E20: 0 | F20: 0 | G20: 0 | H20: 0 | I20: 0 | J20: 0 | K20: 0
A21: スリランカ | B21: 1 | C21: 0 | D21: 0 | E21: 0 | F21: 1 | G21: 0 | H21: 0 | I21: 0 | J21: 0 | K21: 0
A22: ネパール | B22: 3 | C22: 0 | D22: 1 | E22: 0 | F22: 1 | G22: 0 | H22: 1 | I22: 0 | J22: 0 | K22: 0
A23: モンゴル | B23: 0 | C23: 0 | D23: 0 | E23: 0 | F23: 0 | G23: 0 | H23: 0 | I23: 0 | J23: 0 | K23: 0
A24: イラン | B24: 0 | C24: 0 | D24: 0 | E24: 0 | F24: 0 | G24: 0 | H24: 0 | I24: 0 | J24: 0 | K24: 0
A25: トルコ | D25: 0 | E25: 0 | F25: 0 | G25: 0 | H25: 0 | I25: 0 | J25: 0 | K25: 0
A26: イスラエル | D26: 0 | E26: 0 | F26: 0 | G26: 0 | H26: 0 | I26: 0 | J26: 0 | K26: 0
A27: パレスチナ | D27: 0 | E27: 0 | F27: 0 | G27: 0 | H27: 0 | I27: 0 | J27: 0 | K27: 0
A28: アメリカ | B28: 1 | C28: 0 | D28: 0 | E28: 0 | F28: 0 | G28: 0 | H28: 1 | I28: 0 | J28: 0 | K28: 0
A29: カナダ | B29: 0 | C29: 0 | D29: 0 | E29: 0 | F29: 0 | G29: 0 | H29: 0 | I29: 0 | J29: 0 | K29: 0
A30: ブラジル | B30: 0 | C30: 0 | D30: 0 | E30: 0 | F30: 0 | G30: 0 | H30: 0 | I30: 0 | J30: 0 | K30: 0
A31: ペルー | B31: 1 | C31: 0 | D31: 0 | E31: 0 | F31: 0 | G31: 0 | H31: 1 | I31: 0 | J31: 0 | K31: 0
A32: ボリビア | D32: 0 | E32: 0 | F32: 0 | G32: 0 | H32: 0 | I32: 0 | J32: 0 | K32: 0
A33: アルゼンチン | B33: 0 | C33: 0 | D33: 0 | E33: 0 | F33: 0 | G33: 0 | H33: 0 | I33: 0 | J33: 0 | K33: 0
A34: コロンビア | D34: 0 | E34: 0 | F34: 0 | G34: 0 | H34: 0 | I34: 0 | J34: 0 | K34: 0
A35: パラグアイ | D35: 0 | E35: 0 | F35: 0 | G35: 0 | H35: 0 | I35: 0 | J35: 0 | K35: 0
A36: メキシコ | C36: 0 | D36: 0 | E36: 0 | F36: 0 | G36: 0 | H36: 0 | I36: 0 | J36: 0 | K36: 0
A37: チリ | D37: 0 | E37: 0 | F37: 0 | G37: 0 | H37: 0 | I37: 0 | J37: 0 | K37: 0
A38: イギリス | C38: 0 | D38: 0 | E38: 0 | F38: 0 | G38: 0 | H38: 0 | I38: 0 | J38: 0 | K38: 0
A39: フランス | C39: 0 | D39: 0 | E39: 0 | F39: 0 | G39: 0 | H39: 0 | I39: 0 | J39: 0 | K39: 0
A40: ロシア | C40: 0 | D40: 0 | E40: 0 | F40: 0 | G40: 0 | H40: 0 | I40: 0 | J40: 0 | K40: 0
A41: ドイツ | C41: 0 | D41: 0 | E41: 0 | F41: 0 | G41: 0 | H41: 0 | I41: 0 | J41: 0 | K41: 0
A42: ルーマニア | C42: 0 | D42: 0 | E42: 0 | F42: 0 | G42: 0 | H42: 0 | I42: 0 | J42: 0 | K42: 0
A43: イタリア | C43: 0 | D43: 0 | E43: 0 | F43: 0 | G43: 0 | H43: 0 | I43: 0 | J43: 0 | K43: 0
A44: ウクライナ | C44: 0 | D44: 0 | E44: 0 | F44: 0 | G44: 0 | H44: 0 | I44: 0 | J44: 0 | K44: 0
A45: スペイン | C45: 0 | D45: 0 | E45: 0 | F45: 0 | G45: 0 | H45: 0 | I45: 0 | J45: 0 | K45: 0
A46: アイルランド | D46: 0 | E46: 0 | F46: 0 | G46: 0 | H46: 0 | I46: 0 | J46: 0 | K46: 0
A47: スウェーデン | D47: 0 | E47: 0 | F47: 0 | G47: 0 | H47: 0 | I47: 0 | J47: 0 | K47: 0
A48: オランダ | C48: 0 | D48: 0 | E48: 0 | F48: 0 | G48: 0 | H48: 0 | I48: 0 | J48: 0 | K48: 0
A49: スイス | D49: 0 | E49: 0 | F49: 0 | G49: 0 | H49: 0 | I49: 0 | J49: 0 | K49: 0
A50: ポーランド | C50: 0 | D50: 0 | E50: 0 | F50: 0 | G50: 0 | H50: 0 | I50: 0 | J50: 0 | K50: 0
A51: デンマーク | D51: 0 | E51: 0 | F51: 0 | G51: 0 | H51: 0 | I51: 0 | J51: 0 | K51: 0
A52: ノルウェー | D52: 0 | E52: 0 | F52: 0 | G52: 0 | H52: 0 | I52: 0 | J52: 0 | K52: 0
A53: ベルギー | C53: 0 | D53: 0 | E53: 0 | F53: 0 | G53: 0 | H53: 0 | I53: 0 | J53: 0 | K53: 0
A54: ハンガリー | D54: 0 | E54: 0 | F54: 0 | G54: 0 | H54: 0 | I54: 0 | J54: 0 | K54: 0
A55: チェコ | D55: 0 | E55: 0 | F55: 0 | G55: 0 | H55: 0 | I55: 0 | J55: 0 | K55: 0
A56: ガーナ | D56: 0 | E56: 0 | F56: 0 | G56: 0 | H56: 0 | I56: 0 | J56: 0 | K56: 0
A57: ナイジェリア | C57: 0 | D57: 0 | E57: 0 | F57: 0 | G57: 0 | H57: 0 | I57: 0 | J57: 0 | K57: 0
A58: エジプト | C58: 0 | D58: 0 | E58: 0 | F58: 0 | G58: 0 | H58: 0 | I58: 0 | J58: 0 | K58: 0
A59: オーストラリア | C59: 0 | D59: 0 | E59: 0 | F59: 0 | G59: 0 | H59: 0 | I59: 0 | J59: 0 | K59: 0
A60: ニュージーランド | C60: 0 | D60: 1 | E60: 0 | F60: 0 | G60: 0 | H60: 0 | I60: 0 | J60: 0 | K60: 0
A61: その他 | C61: 0 | D61: 0 | E61: 0 | F61: 0 | G61: 0 | H61: 1 | I61: 0 | J61: 0 | K61: 0
A62: 令和7年合計 | B62: =SUM(D62+F62+H62+J62) -> 46 | C62: =SUM(E62+G62+I62+K62) -> 0 | D62: =SUM(D5:D61) -> 17 | F62: =SUM(F5:F61) -> 7 | H62: =SUM(H5:H61) -> 20 | J62: =SUM(J5:J61) -> 2
A63: 令和6年合計 | B63: =SUM(D63+F63+H63+J63) -> 36 | C63: 0 | D63: 15 | E63: 0 | F63: 3 | G63: 0 | H63: 15 | I63: 0 | J63: 3
A64: 増 減 | B64: =B62-B63 -> 10 | C64: =C62-C63 -> 0 | D64: 2 | E64: 0 | F64: 4 | G64: 0 | H64: 5 | I64: 0 | J64: -1 | K64: 0
H65: （ ）の数値は死亡災害件数

Sheet 全体表(コロナ除く)
G1: 業種別・署別災害発生状況（休業４日以上） （新型コロナウイルス感染症を除く） | S1: 宮崎労働局
D2: 統計集計日 | E2: ※上段 | G2: 死亡災害：令和6年12月末日現在 | M2: 休業災害：令和6年12月末日現在
D3: 3 | E3: ※下段 | G3: 死亡災害：令和7年12月末日現在 | M3: 休業災害：令和7年12月末日現在
D4: 速報値 | E4: 合計 | H4: 宮崎署 | K4: 延岡署 | N4: 都城署 | Q4: 日南署
E5: 死亡 | F5: 休業 | G5: 計 | H5: 死亡 | I5: 休業 | J5: 計 | K5: 死亡 | L5: 休業 | M5: 計 | N5: 死亡 | O5: 休業 | P5: 計 | Q5: 死亡 | R5: 休業 | S5: 計
B6: ０１製造業 | E6: =H6+K6+N6+Q6 -> 1 | F6: 303 | G6: =SUM(E6:F6) -> 304 | H6: 0 | I6: 109 | J6: =SUM(H6:I6) -> 109 | K6: 1 | L6: 71 | M6: =SUM(K6:L6) -> 72 | N6: 0 | O6: 104 | P6: =SUM(N6:O6) -> 104 | Q6: 0 | R6: 19 | S6: =SUM(Q6:R6) -> 19
E7: 0 | F7: =I7+L7+O7+R7 -> 283 | G7: =SUM(E7:F7) -> 283 | H7: 0 | I7: 102 | J7: =SUM(H7:I7) -> 102 | K7: 0 | L7: 64 | M7: =SUM(K7:L7) -> 64 | N7: 0 | O7: 97 | P7: =SUM(N7:O7) -> 97 | Q7: 0 | R7: 20 | S7: =SUM(Q7:R7) -> 20
C8: 01食料品 | E8: 0 | F8: 130 | G8: =SUM(E8:F8) -> 130 | H8: 0 | I8: 49 | J8: =SUM(H8:I8) -> 49 | K8: 0 | L8: 25 | M8: =SUM(K8:L8) -> 25 | N8: 0 | O8: 52 | P8: =SUM(N8:O8) -> 52 | Q8: 0 | R8: 4 | S8: =SUM(Q8:R8) -> 4
E9: =H9+K9+N9+Q9 -> 0 | F9: 128 | G9: 128 | H9: 0 | I9: 53 | J9: 53 | K9: 0 | L9: 21 | M9: 21 | N9: 0 | O9: 48 | P9: 48 | Q9: 0 | R9: 6 | S9: 6
C10: 04木材・木製品 | E10: 0 | F10: 57 | G10: 57 | H10: 0 | I10: 9 | J10: =SUM(H10:I10) -> 9 | K10: 0 | L10: 19 | M10: 19 | N10: 0 | O10: 19 | P10: 19 | Q10: 0 | R10: 10 | S10: 10
E11: 0 | F11: 47 | G11: 47 | H11: 0 | I11: 14 | J11: 14 | K11: 0 | L11: 14 | M11: 14 | N11: 0 | O11: 15 | P11: 15 | Q11: 0 | R11: 4 | S11: 4
C12: 09窯業土石 | E12: 0 | F12: 11 | G12: 11 | H12: 0 | I12: 5 | J12: 5 | K12: 0 | L12: 3 | M12: 3 | N12: 0 | O12: 3 | P12: 3 | Q12: 0 | R12: 0 | S12: 0
E13: 0 | F13: 12 | G13: 12 | H13: 0 | I13: 2 | J13: 2 | K13: 0 | L13: 5 | M13: 5 | N13: 0 | O13: 2 | P13: 2 | Q13: 0 | R13: 3 | S13: 3
C14: 12金属製品 | E14: 0 | F14: 12 | G14: 12 | H14: 0 | I14: 6 | J14: 6 | K14: 0 | L14: 2 | M14: 2 | N14: 0 | O14: 3 | P14: 3 | Q14: 0 | R14: 1 | S14: 1
E15: 0 | F15: 12 | G15: 12 | H15: 0 | I15: 2 | J15: 2 | K15: 0 | L15: 3 | M15: 3 | N15: 0 | O15: 5 | P15: 5 | Q15: 0 | R15: 2 | S15: 2
C16: 13～15機械器具 | E16: 0 | F16: 30 | G16: 30 | H16: 0 | I16: 16 | J16: 16 | K16: 0 | L16: 8 | M16: 8 | N16: 0 | O16: 5 | P16: 5 | Q16: 0 | R16: 1 | S16: 1
F17: 17 | G17: 17 | H17: 0 | I17: 8 | J17: 8 | K17: 0 | L17: 4 | M17: 4 | N17: 0 | O17: 4 | P17: 4 | Q17: 0 | R17: 1 | S17: 1
B18: ０２鉱業 | E18: 0 | F18: 2 | G18: 2 | H18: 0 | I18: 0 | J18: 0 | K18: 0 | L18: 1 | M18: 1 | N18: 0 | O18: 1 | P18: 1 | Q18: 0 | R18: 0 | S18: 0
E19: 0 | F19: 1 | G19: 1 | H19: 0 | I19: 0 | J19: 0 | K19: 0 | L19: 1 | M19: 1 | N19: 0 | O19: 0 | P19: 0 | Q19: 0 | R19: 0 | S19: 0
B20: ０３建設業 | E20: 3 | F20: 190 | G20: 193 | H20: 2 | I20: 92 | J20: 94 | K20: 1 | L20: 43 | M20: 44 | N20: 0 | O20: 44 | P20: 44 | Q20: 0 | R20: 11 | S20: 11
E21: 4 | F21: 177 | G21: 181 | H21: 1 | I21: 75 | J21: 76 | K21: 3 | L21: 46 | M21: 49 | N21: 0 | O21: 42 | P21: 42 | Q21: 0 | R21: 14 | S21: 14
C22: 01土木工事 | E22: 2 | F22: 54 | G22: 56 | H22: 1 | I22: 21 | J22: 22 | K22: 1 | L22: 20 | M22: 21 | N22: 0 | O22: 10 | P22: 10 | Q22: 0 | R22: 3 | S22: 3
E23: 4 | F23: 62 | G23: 66 | H23: 1 | I23: 25 | J23: 26 | K23: 3 | L23: 16 | M23: 19 | N23: 0 | O23: 16 | P23: 16 | Q23: 0 | R23: 5 | S23: 5
C24: 02建築工事 | E24: 1 | F24: 91 | G24: 92 | H24: 1 | I24: 50 | J24: 51 | K24: 0 | L24: 12 | M24: 12 | N24: 0 | O24: 23 | P24: 23 | Q24: 0 | R24: 6 | S24: 6
E25: 0 | F25: 79 | G25: 79 | H25: 0 | I25: 36 | J25: 36 | K25: 0 | L25: 18 | M25: 18 | N25: 0 | O25: 19 | P25: 19 | Q25: 0 | R25: 6 | S25: 6
D26: (02-02 | E26: 0 | F26: 17 | G26: 17 | I26: 8 | J26: 8 | L26: 1 | M26: 1 | O26: 6 | P26: 6 | R26: 2 | S26: 2
D27: 木造建築） | E27: 0 | F27: 19 | G27: 19 | I27: 6 | J27: 6 | L27: 5 | M27: 5 | O27: 7 | P27: 7 | R27: 1 | S27: 1
B28: ０４運輸交通業 | E28: 2 | F28: 138 | G28: 140 | H28: 0 | I28: 60 | J28: 60 | K28: 1 | L28: 14 | M28: 15 | N28: 1 | O28: 57 | P28: 58 | Q28: 0 | R28: 7 | S28: 7
E29: 2 | F29: 159 | G29: 161 | H29: 2 | I29: 66 | J29: 68 | K29: 0 | L29: 20 | M29: 20 | N29: 0 | O29: 71 | P29: 71 | Q29: 0 | R29: 2 | S29: 2
C30: 03道路貨物運送 | E30: 2 | F30: 121 | G30: 123 | H30: 0 | I30: 52 | J30: 52 | K30: 1 | L30: 12 | M30: 13 | N30: 1 | O30: 54 | P30: 55 | Q30: 0 | R30: 3 | S30: 3
E31: 1 | F31: 148 | G31: 149 | H31: 1 | I31: 61 | J31: 62 | K31: 0 | L31: 16 | M31: 16 | N31: 0 | O31: 69 | P31: 69 | Q31: 0 | R31: 2 | S31: 2
B32: ０５貨物取扱業 | E32: 0 | F32: 2 | G32: 2 | H32: 0 | I32: 0 | J32: 0 | K32: 0 | L32: 0 | M32: 0 | N32: 0 | O32: 2 | P32: 2 | Q32: 0 | R32: 0 | S32: 0
E33: 0 | F33: 4 | G33: 4 | H33: 0 | I33: 3 | J33: 3 | K33: 0 | L33: 1 | M33: 1 | N33: 0 | O33: 0 | P33: 0 | Q33: 0 | R33: 0 | S33: 0
B34: ０６農林業 | E34: 5 | F34: 106 | G34: 111 | H34: 1 | I34: 35 | J34: 36 | K34: 1 | L34: 30 | M34: 31 | N34: 3 | O34: 23 | P34: 26 | Q34: 0 | R34: 18 | S34: 18
E35: 2 | F35: 92 | G35: 94 | H35: 1 | I35: 23 | J35: 24 | K35: 0 | L35: 32 | M35: 32 | N35: 0 | O35: 21 | P35: 21 | Q35: 1 | R35: 16 | S35: 17
C36: 02林業 | E36: 4 | F36: 64 | G36: 68 | H36: 0 | I36: 13 | J36: 13 | K36: 1 | L36: 28 | M36: 29 | N36: 3 | O36: 10 | P36: 13 | Q36: 0 | R36: 13 | S36: 13
E37: 1 | F37: 61 | G37: 62 | H37: 0 | I37: 8 | J37: 8 | K37: 0 | L37: 30 | M37: 30 | N37: 0 | O37: 10 | P37: 10 | Q37: 1 | R37: 13 | S37: 14
B38: ０７畜産・水産業 | E38: 0 | F38: 59 | G38: 59 | H38: 0 | I38: 23 | J38: 23 | K38: 0 | L38: 3 | M38: 3 | N38: 0 | O38: 30 | P38: 30 | Q38: 0 | R38: 3 | S38: 3
E39: 0 | F39: 62 | G39: 62 | H39: 0 | I39: 23 | J39: 23 | K39: 0 | L39: 6 | M39: 6 | N39: 0 | O39: 29 | P39: 29 | Q39: 0 | R39: 4 | S39: 4
B40: ０８商業 | E40: 1 | F40: 252 | G40: 253 | H40: 1 | I40: 127 | J40: 128 | K40: 0 | L40: 44 | M40: 44 | O40: 63 | P40: 63 | Q40: 0 | R40: 18 | S40: 18
E41: 1 | F41: 226 | G41: 227 | H41: 0 | I41: 116 | J41: 116 | K41: 0 | L41: 50 | M41: 50 | N41: 1 | O41: 49 | P41: 50 | Q41: 0 | R41: 11 | S41: 11
C42: 02小売 | E42: 1 | F42: 186 | G42: 187 | H42: 1 | I42: 95 | J42: 96 | K42: 0 | L42: 36 | M42: 36 | N42: 0 | O42: 39 | P42: 39 | Q42: 0 | R42: 16 | S42: 16
E43: 1 | F43: 163 | G43: 164 | H43: 0 | I43: 83 | J43: 83 | K43: 0 | L43: 38 | M43: 38 | N43: 1 | O43: 34 | P43: 35 | Q43: 0 | R43: 8 | S43: 8
B44: ０９金融・広告業 | E44: 0 | F44: 9 | G44: 9 | H44: 0 | I44: 4 | J44: 4 | K44: 0 | L44: 2 | M44: 2 | N44: 0 | O44: 2 | P44: 2 | Q44: 0 | R44: 1 | S44: 1
E45: 0 | F45: 8 | G45: 8 | H45: 0 | I45: 5 | J45: 5 | K45: 0 | L45: 2 | M45: 2 | N45: 0 | O45: 1 | P45: 1 | Q45: 0 | R45: 0 | S45: 0
B46: １０映画・演劇業 | E46: 0 | F46: 0 | G46: 0 | H46: 0 | I46: 0 | J46: 0 | K46: 0 | L46: 0 | M46: 0 | N46: 0 | O46: 0 | P46: 0 | Q46: 0 | R46: 0 | S46: 0
E47: 0 | F47: 0 | G47: 0 | H47: 0 | I47: 0 | J47: 0 | K47: 0 | L47: 0 | M47: 0 | N47: 0 | O47: 0 | P47: 0 | Q47: 0 | R47: 0 | S47: 0
B48: １１通信業 | E48: 0 | F48: 20 | G48: 20 | H48: 0 | I48: 6 | J48: 6 | K48: 0 | L48: 8 | M48: 8 | N48: 0 | O48: 4 | P48: 4 | Q48: 0 | R48: 2 | S48: 2
E49: 0 | F49: 12 | G49: 12 | H49: 0 | I49: 7 | J49: 7 | K49: 0 | L49: 2 | M49: 2 | N49: 0 | O49: 3 | P49: 3 | Q49: 0 | R49: 0 | S49: 0
B50: １２教育・研究業 | E50: 0 | F50: 17 | G50: 17 | H50: 0 | I50: 7 | J50: 7 | K50: 0 | L50: 3 | M50: 3 | N50: 0 | O50: 6 | P50: 6 | Q50: 0 | R50: 1 | S50: 1
E51: 0 | F51: 17 | G51: 17 | H51: 0 | I51: 13 | J51: 13 | K51: 0 | L51: 2 | M51: 2 | N51: 0 | O51: 2 | P51: 2 | Q51: 0 | R51: 0 | S51: 0
B52: １３保健衛生業 | E52: 0 | F52: 211 | G52: 211 | H52: 0 | I52: 92 | J52: 92 | K52: 0 | L52: 37 | M52: 37 | N52: 0 | O52: 67 | P52: 67 | Q52: 0 | R52: 15 | S52: 15
E53: 0 | F53: 203 | G53: 203 | H53: 0 | I53: 91 | J53: 91 | K53: 0 | L53: 42 | M53: 42 | N53: 0 | O53: 54 | P53: 54 | Q53: 0 | R53: 16 | S53: 16
C54: 02社会福祉施設 | E54: 0 | F54: 143 | G54: 143 | H54: 0 | I54: 66 | J54: 66 | K54: 0 | L54: 26 | M54: 26 | N54: 0 | O54: 41 | P54: 41 | Q54: 0 | R54: 10 | S54: 10
E55: 0 | F55: 134 | G55: 134 | H55: 0 | I55: 63 | J55: 63 | K55: 0 | L55: 28 | M55: 28 | N55: 0 | O55: 37 | P55: 37 | Q55: 0 | R55: 6 | S55: 6
B56: １４接客娯楽業 | E56: 0 | F56: 83 | G56: 83 | H56: 0 | I56: 50 | J56: 50 | K56: 0 | L56: 11 | M56: 11 | N56: 0 | O56: 17 | P56: 17 | Q56: 0 | R56: 5 | S56: 5
E57: 0 | F57: 88 | G57: 88 | H57: 0 | I57: 45 | J57: 45 | K57: 0 | L57: 12 | M57: 12 | N57: 0 | O57: 26 | P57: 26 | Q57: 0 | R57: 5 | S57: 5
C58: 02飲食店 | E58: 0 | F58: 47 | G58: 47 | H58: 0 | I58: 28 | J58: 28 | K58: 0 | L58: 7 | M58: 7 | N58: 0 | O58: 10 | P58: 10 | Q58: 0 | R58: 2 | S58: 2
E59: 0 | F59: 55 | G59: 55 | H59: 0 | I59: 28 | J59: 28 | K59: 0 | L59: 6 | M59: 6 | N59: 0 | O59: 17 | P59: 17 | Q59: 0 | R59: 4 | S59: 4
B60: １５清掃・と畜業 | E60: 0 | F60: 65 | G60: 65 | H60: 0 | I60: 41 | J60: 41 | K60: 0 | L60: 7 | M60: 7 | N60: 0 | O60: 14 | P60: 14 | Q60: 0 | R60: 3 | S60: 3
E61: 0 | F61: 62 | G61: 62 | H61: 0 | I61: 37 | J61: 37 | K61: 0 | L61: 5 | M61: 5 | N61: 0 | O61: 20 | P61: 20 | Q61: 0 | R61: 0 | S61: =SUM(Q61:R61) -> 0
D62: (01-01 | E62: 0 | F62: 38 | G62: 38 | I62: 27 | J62: 27 | L62: 4 | M62: 4 | O62: 5 | P62: 5 | R62: 2 | S62: 2
D63: ビルメン） | E63: 0 | F63: 25 | G63: 25 | I63: 19 | J63: 19 | L63: 1 | M63: 1 | O63: 5 | P63: 5 | R63: 0 | S63: 0
B64: １６官公署 | E64: 0 | F64: 0 | G64: 0 | H64: 0 | I64: 0 | J64: 0 | K64: 0 | L64: 0 | M64: 0 | N64: 0 | O64: 0 | P64: 0 | Q64: 0 | R64: 0 | S64: 0
E65: 0 | F65: 2 | G65: 2 | H65: 0 | I65: 0 | J65: 0 | K65: 0 | L65: 0 | M65: 0 | N65: 0 | O65: 1 | P65: 1 | Q65: 0 | R65: 1 | S65: 1
B66: １７その他の事業 | E66: 2 | F66: 70 | G66: 72 | H66: 1 | I66: 36 | J66: 37 | K66: 0 | L66: 8 | M66: 8 | N66: 1 | O66: 17 | P66: 18 | Q66: 0 | R66: 9 | S66: 9
E67: 1 | F67: 66 | G67: 67 | H67: 0 | I67: 34 | J67: 34 | K67: 0 | L67: 13 | M67: 13 | N67: 0 | O67: 14 | P67: 14 | Q67: 1 | R67: 5 | S67: 6
B68: 合 計 | E68: 14 | F68: =I68+L68+O68+R68 -> 1527 | G68: =SUM(E68:F68) -> 1541 | H68: =H6+H18+H20+H28+H32+H34+H38+H40+H44+H46+H48+H50+H52+H56+H60+H64+H66 -> 5 | I68: =I6+I18+I20+I28+I32+I34+I38+I40+I44+I46+I48+I50+I52+I56+I60+I64+I66 -> 682 | J68: =SUM(H68:I68) -> 687 | K68: =K6+K18+K20+K28+K32+K34+K38+K40+K44+K46+K48+K50+K52+K56+K60+K64+K66 -> 4 | L68: =L6+L18+L20+L28+L32+L34+L38+L40+L44+L46+L48+L50+L52+L56+L60+L64+L66 -> 282 | M68: =SUM(K68:L68) -> 286 | N68: =N6+N18+N20+N28+N32+N34+N38+N40+N44+N46+N48+N50+N52+N56+N60+N64+N66 -> 5 | O68: =O6+O18+O20+O28+O32+O34+O38+O40+O44+O46+O48+O50+O52+O56+O60+O64+O66 -> 451 | P68: =SUM(N68:O68) -> 456 | Q68: =Q6+Q18+Q20+Q28+Q32+Q34+Q38+Q40+Q44+Q46+Q48+Q50+Q52+Q56+Q60+Q64+Q66 -> 0 | R68: =R6+R18+R20+R28+R32+R34+R38+R40+R44+R46+R48+R50+R52+R56+R60+R64+R66 -> 112 | S68: =SUM(Q68:R68) -> 112
E69: 10 | F69: =I69+L69+O69+R69 -> 1462 | G69: =SUM(E69:F69) -> 1472 | H69: =H7+H19+H21+H29+H33+H35+H39+H41+H45+H47+H49+H51+H53+H57+H61+H65+H67 -> 4 | I69: =I7+I19+I21+I29+I33+I35+I39+I41+I45+I47+I49+I51+I53+I57+I61+I65+I67 -> 640 | J69: =SUM(H69:I69) -> 644 | K69: =K7+K19+K21+K29+K33+K35+K39+K41+K45+K47+K49+K51+K53+K57+K61+K65+K67 -> 3 | L69: =L7+L19+L21+L29+L33+L35+L39+L41+L45+L47+L49+L51+L53+L57+L61+L65+L67 -> 298 | M69: =SUM(K69:L69) -> 301 | N69: 1 | O69: =O7+O19+O21+O29+O33+O35+O39+O41+O45+O47+O49+O51+O53+O57+O61+O65+O67 -> 430 | P69: =SUM(N69:O69) -> 431 | Q69: =Q7+Q19+Q21+Q29+Q33+Q35+Q39+Q41+Q45+Q47+Q49+Q51+Q53+Q57+Q61+Q65+Q67 -> 2 | R69: =R7+R19+R21+R29+R33+R35+R39+R41+R45+R47+R49+R51+R53+R57+R61+R65+R67 -> 94 | S69: =SUM(Q69:R69) -> 96
I70: 0 | S70: 資料出所：労働者死傷病報告
I71: 0
I72: 0
I73: 0
I74: 0
I75: 0
I76: 0

Sheet 増減表(コロナ除く)
D3: 死亡災害休業災害・増減表 | O3: 死亡災害休業災害・増減表 | Z3: 死亡災害休業災害・増減表 | AK3: 死亡災害休業災害・増減表 | AV3: 死亡災害休業災害・増減表 | BE3: =D7 -> 死亡災害：令和7年12月末日現在
D4: （新型コロナウイルス感染症を除く） | O4: （新型コロナウイルス感染症を除く） | Z4: （新型コロナウイルス感染症を除く） | AK4: （新型コロナウイルス感染症を除く） | AV4: （新型コロナウイルス感染症を除く） | BE4: 林業 | BF4: 建設業 | BG4: 製造業 | BH4: 運輸交通業 | BI4: その他 | BJ4: 計
K5: 宮崎労働局 | V5: 宮崎労働基準監督署 | AG5: 延岡労働基準監督署 | AR5: 都城労働基準監督署 | BC5: 日南労働基準監督署 | BE5: =E25 -> 0 | BF5: =E17 -> 1 | BG5: =E10 -> 0 | BH5: =E21 -> 2 | BI5: =BJ5-SUM(BE5:BH5) -> 7 | BJ5: =E41 -> 10
D7: 死亡災害：令和7年12月末日現在 | H7: 休業災害：令和7年12月末日現在 | O7: =D7 -> 死亡災害：令和7年12月末日現在 | S7: =H7 -> 休業災害：令和7年12月末日現在 | Z7: =D7 -> 死亡災害：令和7年12月末日現在 | AD7: =H7 -> 休業災害：令和7年12月末日現在 | AK7: =D7 -> 死亡災害：令和7年12月末日現在 | AO7: =H7 -> 休業災害：令和7年12月末日現在 | AV7: =D7 -> 死亡災害：令和7年12月末日現在 | AZ7: =H7 -> 休業災害：令和7年12月末日現在
D8: 死亡災害増減表 | H8: 休業災害増減表 | O8: 死亡災害増減表 | S8: 休業災害増減表 | Z8: 死亡災害増減表 | AD8: 休業災害増減表 | AK8: 死亡災害増減表 | AO8: 休業災害増減表 | AV8: 死亡災害増減表 | AZ8: 休業災害増減表
D9: 令和6年 | E9: 令和7年 | F9: 増減 | G9: 増減率 | H9: =D9 -> 令和6年 | I9: =E9 -> 令和7年 | J9: 増減 | K9: 増減率 | O9: =D9 -> 令和6年 | P9: =E9 -> 令和7年 | Q9: 増減 | R9: 増減率 | S9: =O9 -> 令和6年 | T9: =P9 -> 令和7年 | U9: 増減 | V9: 増減率 | Z9: =D9 -> 令和6年 | AA9: =E9 -> 令和7年 | AB9: 増減 | AC9: 増減率 | AD9: =Z9 -> 令和6年 | AE9: =AA9 -> 令和7年 | AF9: 増減 | AG9: 増減率 | AK9: =D9 -> 令和6年 | AL9: =E9 -> 令和7年 | AM9: 増減 | AN9: 増減率 | AO9: =AK9 -> 令和6年 | AP9: =AL9 -> 令和7年 | AQ9: 増減 | AR9: 増減率 | AV9: =D9 -> 令和6年 | AW9: =E9 -> 令和7年 | AX9: 増減 | AY9: 増減率 | AZ9: =AV9 -> 令和6年 | BA9: =AW9 -> 令和7年 | BB9: 増減 | BC9: 増減率
A10: ０１製造業 | D10: 1 | E10: 0 | F10: =E10-D10 -> -1 | G10: =IF(D10=0,IF(E10=0,"－","∞"),F10/D10) -> -1 | H10: 143 | I10: 283 | J10: =I10-H10 -> 140 | K10: =IF(H10=0,IF(I10=0,"－","∞"),J10/H10) -> 0.979020979 | L10: ０１製造業 | O10: 0 | P10: 0 | R10: =IF(O10=0,IF(P10=0,"－","∞"),Q10/O10) -> － | S10: 109 | T10: 102 | U10: =T10-S10 -> -7 | V10: =IF(S10=0,IF(T10=0,"－","∞"),U10/S10) -> -0.06422018349 | W10: ０１製造業 | Z10: 1 | AA10: 0 | AB10: =AA10-Z10 -> -1 | AC10: =IF(Z10=0,IF(AA10=0,"－","∞"),AB10/Z10) -> -1 | AD10: 71 | AE10: 64 | AF10: =AE10-AD10 -> -7 | AG10: =IF(AD10=0,IF(AE10=0,"－","∞"),AF10/AD10) -> -0.0985915493 | AH10: ０１製造業 | AK10: 0 | AL10: 0 | AM10: =AL10-AK10 -> 0 | AN10: =IF(AK10=0,IF(AL10=0,"－","∞"),AM10/AK10) -> － | AO10: 104 | AP10: 97 | AQ10: =AP10-AO10 -> -7 | AR10: =IF(AO10=0,IF(AP10=0,"－","∞"),AQ10/AO10) -> -0.06730769231 | AS10: ０１製造業 | AV10: 0 | AW10: 0 | AX10: =AW10-AV10 -> 0 | AY10: =IF(AV10=0,IF(AW10=0,"－","∞"),AX10/AV10) -> － | AZ10: 19 | BA10: 20 | BB10: =BA10-AZ10 -> 1 | BC10: =IF(AZ10=0,IF(BA10=0,"－","∞"),BB10/AZ10) -> 0.05263157895
B11: 01食料品 | D11: 0 | E11: 0 | F11: =E11-D11 -> 0 | G11: － | H11: 66 | I11: 128 | J11: =I11-H11 -> 62 | K11: 0.9393939394 | M11: 01食料品 | O11: 0 | P11: 0 | Q11: =P11-O11 -> 0 | R11: =IF(O11=0,IF(P11=0,"－","∞"),Q11/O11) -> － | S11: 49 | T11: 53 | U11: =T11-S11 -> 4 | V11: =IF(S11=0,IF(T11=0,"－","∞"),U11/S11) -> 0.08163265306 | X11: 01食料品 | Z11: 0 | AA11: 0 | AB11: =AA11-Z11 -> 0 | AC11: － | AD11: 25 | AE11: 21 | AF11: =AE11-AD11 -> -4 | AG11: -0.16 | AI11: 01食料品 | AK11: 0 | AL11: 0 | AM11: =AL11-AK11 -> 0 | AN11: － | AO11: 52 | AP11: 48 | AQ11: =AP11-AO11 -> -4 | AR11: =IF(AO11=0,IF(AP11=0,"－","∞"),AQ11/AO11) -> -0.07692307692 | AT11: 01食料品 | AV11: 0 | AW11: 0 | AX11: =AW11-AV11 -> 0 | AY11: － | AZ11: 4 | BA11: 6 | BB11: =BA11-AZ11 -> 2 | BC11: 0.5
B12: 04木材・木製品 | D12: 0 | E12: 0 | F12: =E12-D12 -> 0 | G12: － | H12: 27 | I12: 47 | J12: 20 | K12: 0.7407407407 | M12: 04木材・木製品 | O12: 0 | P12: 0 | Q12: 0 | R12: － | S12: 9 | T12: 14 | U12: 5 | V12: 0.5555555556 | X12: 04木材・木製品 | Z12: 0 | AA12: 0 | AB12: 0 | AC12: － | AD12: 19 | AE12: 14 | AF12: -5 | AG12: -0.2631578947 | AI12: 04木材・木製品 | AK12: 0 | AL12: 0 | AM12: 0 | AN12: － | AO12: 19 | AP12: 15 | AQ12: -4 | AR12: -0.2105263158 | AT12: 04木材・木製品 | AV12: 0 | AW12: 0 | AX12: 0 | AY12: － | AZ12: 10 | BA12: 4 | BB12: -6 | BC12: -0.6
B13: 09窯業土石 | D13: 0 | E13: 0 | F13: 0 | G13: － | H13: 4 | I13: 12 | J13: 8 | K13: 2 | M13: 09窯業土石 | O13: 0 | P13: 0 | Q13: 0 | R13: － | S13: 5 | T13: 2 | U13: -3 | V13: -0.6 | X13: 09窯業土石 | Z13: 0 | AA13: 0 | AB13: 0 | AC13: － | AD13: 3 | AE13: 5 | AF13: 2 | AG13: 0.6666666667 | AI13: 09窯業土石 | AK13: 0 | AL13: 0 | AM13: 0 | AN13: － | AO13: 3 | AP13: 2 | AQ13: -1 | AR13: -0.3333333333 | AT13: 09窯業土石 | AV13: 0 | AW13: 0 | AX13: 0 | AY13: － | AZ13: 0 | BA13: 3 | BB13: 3 | BC13: ∞
B14: 12金属製品 | D14: 0 | E14: 0 | F14: 0 | G14: － | H14: 6 | I14: 12 | J14: 6 | K14: 1 | M14: 12金属製品 | O14: 0 | P14: 0 | Q14: 0 | R14: － | S14: 6 | T14: 2 | U14: -4 | V14: -0.6666666667 | X14: 12金属製品 | Z14: 0 | AA14: 0 | AB14: 0 | AC14: － | AD14: 2 | AE14: 3 | AF14: 1 | AG14: 0.5 | AI14: 12金属製品 | AK14: 0 | AL14: 0 | AM14: 0 | AN14: － | AO14: 3 | AP14: 5 | AQ14: 2 | AR14: 0.6666666667 | AT14: 12金属製品 | AV14: 0 | AW14: 0 | AX14: 0 | AY14: － | AZ14: 1 | BA14: 2 | BB14: 1 | BC14: 1
B15: 13～15機械器具 | D15: 0 | E15: 0 | F15: =E15-D15 -> 0 | G15: － | H15: 11 | I15: 17 | J15: 6 | K15: 0.5454545455 | M15: 13～15機械器具 | O15: 0 | P15: 0 | Q15: 0 | R15: － | S15: 16 | T15: 8 | U15: -8 | V15: -0.5 | X15: 13～15機械器具 | Z15: 0 | AA15: 0 | AB15: 0 | AC15: － | AD15: 8 | AE15: 4 | AF15: -4 | AG15: -0.5 | AI15: 13～15機械器具 | AK15: 0 | AL15: 0 | AM15: 0 | AN15: － | AO15: 5 | AP15: 4 | AQ15: -1 | AR15: -0.2 | AT15: 13～15機械器具 | AV15: 0 | AW15: 0 | AX15: 0 | AY15: － | AZ15: 1 | BA15: 1 | BB15: 0 | BC15: 0
A16: ０２鉱業 | D16: 0 | E16: 0 | F16: 0 | G16: － | I16: 1 | J16: 1 | K16: ∞ | L16: ０２鉱業 | O16: 0 | P16: 0 | Q16: 0 | R16: － | S16: 0 | T16: 0 | U16: 0 | V16: － | W16: ０２鉱業 | Z16: 0 | AA16: 0 | AB16: 0 | AC16: － | AD16: 1 | AE16: 1 | AF16: 0 | AG16: 0 | AH16: ０２鉱業 | AK16: 0 | AL16: 0 | AM16: 0 | AN16: － | AO16: 1 | AP16: 0 | AQ16: -1 | AR16: -1 | AS16: ０２鉱業 | AV16: 0 | AW16: 0 | AX16: 0 | AY16: － | AZ16: 0 | BA16: 0 | BB16: 0 | BC16: －
A17: ０３建設業 | D17: 3 | E17: 1 | F17: -2 | G17: -0.6666666667 | H17: 99 | I17: 177 | J17: 78 | K17: 0.7878787879 | L17: ０３建設業 | O17: 2 | P17: 1 | Q17: -1 | R17: =IF(O17=0,IF(P17=0,"－","∞"),Q17/O17) -> -0.5 | S17: 93 | T17: 75 | U17: -18 | V17: -0.1935483871 | W17: ０３建設業 | Z17: 1 | AA17: 3 | AB17: 2 | AC17: 2 | AD17: 43 | AE17: 46 | AF17: 3 | AG17: 0.06976744186 | AH17: ０３建設業 | AK17: 0 | AL17: 0 | AM17: 0 | AN17: － | AO17: 44 | AP17: 42 | AQ17: -2 | AR17: -0.04545454545 | AS17: ０３建設業 | AV17: 0 | AW17: 0 | AX17: 0 | AY17: － | AZ17: 11 | BA17: 14 | BB17: 3 | BC17: 0.2727272727
B18: 01土木工事 | D18: 2 | E18: 1 | F18: -1 | G18: -0.5 | H18: 26 | I18: 62 | J18: 36 | K18: 1.384615385 | M18: 01土木工事 | O18: 1 | P18: 1 | Q18: 0 | R18: 0 | S18: 21 | T18: 25 | U18: 4 | V18: 0.1904761905 | X18: 01土木工事 | Z18: 1 | AA18: 3 | AB18: 2 | AC18: 2 | AD18: 20 | AE18: 16 | AF18: -4 | AG18: -0.2 | AI18: 01土木工事 | AK18: 0 | AL18: 0 | AM18: 0 | AN18: － | AO18: 10 | AP18: 16 | AQ18: 6 | AR18: 0.6 | AT18: 01土木工事 | AV18: 0 | AW18: 0 | AX18: 0 | AY18: － | AZ18: 3 | BA18: 5 | BB18: 2 | BC18: 0.6666666667
B19: 02建築工事 | D19: 1 | E19: 0 | F19: -1 | G19: -1 | H19: 44 | I19: 79 | J19: 35 | K19: 0.7954545455 | M19: 02建築工事 | O19: 1 | P19: 0 | Q19: -1 | R19: -1 | S19: 51 | T19: 36 | U19: -15 | V19: -0.2941176471 | X19: 02建築工事 | Z19: 0 | AA19: 0 | AB19: 0 | AC19: － | AD19: 12 | AE19: 18 | AF19: 6 | AG19: 0.5 | AI19: 02建築工事 | AK19: 0 | AL19: 0 | AM19: 0 | AN19: － | AO19: 23 | AP19: 19 | AQ19: -4 | AR19: -0.1739130435 | AT19: 02建築工事 | AV19: 0 | AW19: 0 | AX19: 0 | AY19: － | AZ19: 6 | BA19: 6 | BB19: 0 | BC19: 0
C20: (02-02木造建築) | D20: 0 | E20: 0 | F20: 0 | G20: － | H20: 11 | I20: 19 | J20: 8 | K20: 0.7272727273 | N20: (02-02木造建築) | Q20: 0 | R20: － | S20: 9 | T20: 6 | U20: -3 | V20: -0.3333333333 | Y20: (02-02木造建築) | AB20: 0 | AC20: － | AD20: 1 | AE20: 5 | AF20: 4 | AG20: 4 | AJ20: (02-02木造建築) | AM20: 0 | AN20: － | AO20: 6 | AP20: 7 | AQ20: 1 | AR20: 0.1666666667 | AU20: (02-02木造建築) | AX20: 0 | AY20: － | AZ20: 2 | BA20: 1 | BB20: -1 | BC20: -0.5
A21: ０４運輸交通業 | D21: 2 | E21: 2 | F21: 0 | G21: 0 | H21: 72 | I21: 159 | J21: 87 | K21: 1.208333333 | L21: ０４運輸交通業 | O21: 0 | P21: 2 | Q21: 2 | R21: ∞ | S21: 60 | T21: 66 | U21: 6 | V21: 0.1 | W21: ０４運輸交通業 | Z21: 1 | AA21: 0 | AB21: -1 | AC21: -1 | AD21: 14 | AE21: 20 | AF21: 6 | AG21: 0.4285714286 | AH21: ０４運輸交通業 | AK21: 1 | AL21: 0 | AM21: -1 | AN21: -1 | AO21: 57 | AP21: 71 | AQ21: 14 | AR21: 0.2456140351 | AS21: ０４運輸交通業 | AV21: 0 | AW21: 0 | AX21: 0 | AY21: － | AZ21: 7 | BA21: 2 | BB21: -5 | BC21: -0.7142857143
B22: 03道路貨物運送 | D22: 2 | E22: 1 | F22: -1 | G22: -0.5 | H22: 59 | I22: 148 | J22: 89 | K22: 1.508474576 | M22: 03道路貨物運送 | O22: 0 | P22: 1 | Q22: 1 | R22: ∞ | S22: 52 | T22: 61 | U22: 9 | V22: 0.1730769231 | X22: 03道路貨物運送 | Z22: 1 | AA22: 0 | AB22: -1 | AC22: -1 | AD22: 12 | AE22: 16 | AF22: 4 | AG22: 0.3333333333 | AI22: 03道路貨物運送 | AK22: 1 | AL22: 0 | AM22: -1 | AN22: -1 | AO22: 54 | AP22: 69 | AQ22: 15 | AR22: 0.2777777778 | AT22: 03道路貨物運送 | AV22: 0 | AW22: 0 | AX22: 0 | AY22: － | AZ22: 3 | BA22: 2 | BB22: -1 | BC22: -0.3333333333
A23: ０５貨物取扱業 | D23: 0 | E23: 0 | F23: 0 | G23: － | H23: 1 | I23: 4 | J23: 3 | K23: 3 | L23: ０５貨物取扱業 | O23: 0 | P23: 0 | Q23: 0 | R23: － | S23: 0 | T23: 3 | U23: 3 | V23: ∞ | W23: ０５貨物取扱業 | Z23: 0 | AA23: 0 | AB23: 0 | AC23: － | AD23: 0 | AE23: 1 | AF23: 1 | AG23: ∞ | AH23: ０５貨物取扱業 | AK23: 0 | AL23: 0 | AM23: 0 | AN23: － | AO23: 2 | AP23: 0 | AQ23: -2 | AR23: -1 | AS23: ０５貨物取扱業 | AV23: 0 | AW23: 0 | AX23: 0 | AY23: － | AZ23: 0 | BA23: 0 | BB23: 0 | BC23: － | BE23: =H7 -> 休業災害：令和7年12月末日現在
A24: ０６農林業 | D24: 5 | E24: 1 | F24: -4 | G24: -0.8 | H24: 54 | I24: 92 | J24: 38 | K24: 0.7037037037 | L24: ０６農林業 | O24: 1 | P24: 1 | Q24: 0 | R24: 0 | S24: 35 | T24: 23 | U24: -12 | V24: -0.3428571429 | W24: ０６農林業 | Z24: 1 | AA24: 0 | AB24: -1 | AC24: -1 | AD24: 30 | AE24: 32 | AF24: 2 | AG24: 0.06666666667 | AH24: ０６農林業 | AK24: 3 | AL24: 0 | AM24: -3 | AN24: -1 | AO24: 23 | AP24: 21 | AQ24: -2 | AR24: -0.08695652174 | AS24: ０６農林業 | AV24: 0 | AW24: 1 | AX24: 1 | AY24: ∞ | AZ24: 17 | BA24: 16 | BB24: -1 | BC24: -0.05882352941 | BE24: 林業 | BF24: 建設業 | BG24: 製造業 | BH24: 運輸交通業 | BI24: その他 | BJ24: 計
B25: 02林業 | D25: 4 | E25: 0 | F25: -4 | G25: -1 | H25: 33 | I25: 61 | J25: 28 | K25: 0.8484848485 | M25: 02林業 | O25: 0 | P25: 0 | Q25: 0 | R25: － | S25: 13 | T25: 8 | U25: -5 | V25: -0.3846153846 | X25: 02林業 | Z25: 1 | AA25: 0 | AB25: -1 | AC25: -1 | AD25: 28 | AE25: 30 | AF25: 2 | AG25: 0.07142857143 | AI25: 02林業 | AK25: 3 | AL25: 0 | AM25: -3 | AN25: -1 | AO25: 10 | AP25: 10 | AQ25: 0 | AR25: 0 | AT25: 02林業 | AV25: 0 | AW25: 1 | AX25: 1 | AY25: ∞ | AZ25: 12 | BA25: 13 | BB25: 1 | BC25: 0.08333333333 | BE25: =I25 -> 61 | BF25: =I17 -> 177 | BG25: =I10 -> 283 | BH25: =I21 -> 159 | BI25: =BJ25-SUM(BE25:BH25) -> 782 | BJ25: =I41 -> 1462
A26: ０７畜産・水産業 | D26: 0 | E26: 0 | F26: 0 | G26: － | H26: 18 | I26: 62 | J26: 44 | K26: 2.444444444 | L26: ０７畜産・水産業 | O26: 0 | P26: 0 | Q26: 0 | R26: － | S26: 23 | T26: 23 | U26: 0 | V26: 0 | W26: ０７畜産・水産業 | Z26: 0 | AA26: 0 | AB26: 0 | AC26: － | AD26: 3 | AE26: 6 | AF26: 3 | AG26: 1 | AH26: ０７畜産・水産業 | AK26: 0 | AL26: 0 | AM26: 0 | AN26: － | AO26: 30 | AP26: 29 | AQ26: -1 | AR26: -0.03333333333 | AS26: ０７畜産・水産業 | AV26: 0 | AW26: 0 | AX26: 0 | AY26: － | AZ26: 3 | BA26: 4 | BB26: 1 | BC26: 0.3333333333
A27: ０８商業 | D27: 1 | E27: 1 | F27: 0 | G27: 0 | H27: 125 | I27: 226 | J27: 101 | K27: 0.808 | L27: ０８商業 | O27: 1 | P27: 0 | Q27: -1 | R27: -1 | S27: 127 | T27: 116 | U27: -11 | V27: -0.08661417323 | W27: ０８商業 | Z27: 0 | AA27: 0 | AB27: 0 | AC27: － | AD27: 44 | AE27: 50 | AF27: 6 | AG27: 0.1363636364 | AH27: ０８商業 | AK27: 0 | AL27: 1 | AM27: 1 | AN27: ∞ | AO27: 63 | AP27: 49 | AQ27: -14 | AR27: -0.2222222222 | AS27: ０８商業 | AV27: 0 | AW27: 0 | AX27: 0 | AY27: － | AZ27: 18 | BA27: 11 | BB27: -7 | BC27: -0.3888888889
B28: 02小売業 | D28: 1 | E28: 1 | F28: 0 | G28: 0 | H28: 93 | I28: 163 | J28: 70 | K28: 0.752688172 | M28: 02小売業 | O28: 1 | P28: 0 | Q28: -1 | R28: -1 | S28: 95 | T28: 83 | U28: -12 | V28: -0.1263157895 | X28: 02小売業 | Z28: 0 | AA28: 0 | AB28: 0 | AC28: － | AD28: 36 | AE28: 38 | AF28: 2 | AG28: 0.05555555556 | AI28: 02小売業 | AK28: 0 | AL28: 1 | AM28: 1 | AN28: ∞ | AO28: 39 | AP28: 34 | AQ28: -5 | AR28: -0.1282051282 | AT28: 02小売業 | AV28: 0 | AW28: 0 | AX28: 0 | AY28: － | AZ28: 16 | BA28: 8 | BB28: -8 | BC28: -0.5
A29: ０９金融・広告業 | D29: 0 | E29: 0 | F29: 0 | G29: － | H29: 1 | I29: 8 | J29: 7 | K29: 7 | L29: ０９金融・広告業 | O29: 0 | P29: 0 | Q29: 0 | R29: － | S29: 4 | T29: 5 | U29: 1 | V29: 0.25 | W29: ０９金融・広告業 | Z29: 0 | AA29: 0 | AB29: 0 | AC29: － | AD29: 2 | AE29: 2 | AF29: 0 | AG29: 0 | AH29: ０９金融・広告業 | AK29: 0 | AL29: 0 | AM29: 0 | AN29: － | AO29: 2 | AP29: 1 | AQ29: -1 | AR29: -0.5 | AS29: ０９金融・広告業 | AV29: 0 | AW29: 0 | AX29: 0 | AY29: － | AZ29: 1 | BA29: 0 | BB29: -1 | BC29: -1
A30: １０映画・演劇業 | D30: 0 | E30: 0 | F30: 0 | G30: － | H30: 0 | I30: 0 | J30: 0 | K30: － | L30: １０映画・演劇業 | O30: 0 | P30: 0 | Q30: 0 | R30: － | S30: 0 | T30: 0 | U30: 0 | V30: － | W30: １０映画・演劇業 | Z30: 0 | AA30: 0 | AB30: 0 | AC30: － | AD30: 0 | AE30: 0 | AF30: 0 | AG30: － | AH30: １０映画・演劇業 | AK30: 0 | AL30: 0 | AM30: 0 | AN30: － | AO30: 0 | AP30: 0 | AQ30: 0 | AR30: － | AS30: １０映画・演劇業 | AV30: 0 | AW30: 0 | AX30: 0 | AY30: － | AZ30: 0 | BA30: 0 | BB30: 0 | BC30: －
A31: １１通信業 | D31: 0 | E31: 0 | F31: 0 | G31: － | H31: 10 | I31: 12 | J31: 2 | K31: 0.2 | L31: １１通信業 | O31: 0 | P31: 0 | Q31: 0 | R31: － | S31: 6 | T31: 7 | U31: 1 | V31: 0.1666666667 | W31: １１通信業 | Z31: 0 | AA31: 0 | AB31: 0 | AC31: － | AD31: 8 | AE31: 2 | AF31: -6 | AG31: -0.75 | AH31: １１通信業 | AK31: 0 | AL31: 0 | AM31: 0 | AN31: － | AO31: 4 | AP31: 3 | AQ31: -1 | AR31: -0.25 | AS31: １１通信業 | AV31: 0 | AW31: 0 | AX31: 0 | AY31: － | AZ31: 2 | BA31: 0 | BB31: -2 | BC31: -1
A32: １２教育・研究業 | D32: 0 | E32: 0 | F32: 0 | G32: － | H32: 5 | I32: 17 | J32: 12 | K32: 2.4 | L32: １２教育・研究業 | O32: 0 | P32: 0 | Q32: 0 | R32: － | S32: 7 | T32: 13 | U32: 6 | V32: 0.8571428571 | W32: １２教育・研究業 | Z32: 0 | AA32: 0 | AB32: 0 | AC32: － | AD32: 3 | AE32: 2 | AF32: -1 | AG32: -0.3333333333 | AH32: １２教育・研究業 | AK32: 0 | AL32: 0 | AM32: 0 | AN32: － | AO32: 6 | AP32: 2 | AQ32: -4 | AR32: -0.6666666667 | AS32: １２教育・研究業 | AV32: 0 | AW32: 0 | AX32: 0 | AY32: － | AZ32: 1 | BA32: 0 | BB32: -1 | BC32: -1
A33: １３保健衛生業 | D33: 0 | E33: 0 | F33: 0 | G33: － | H33: 104 | I33: 203 | J33: 99 | K33: 0.9519230769 | L33: １３保健衛生業 | O33: 0 | P33: 0 | Q33: 0 | R33: － | S33: 92 | T33: 91 | U33: -1 | V33: -0.01086956522 | W33: １３保健衛生業 | Z33: 0 | AA33: 0 | AB33: 0 | AC33: － | AD33: 38 | AE33: 42 | AF33: 4 | AG33: 0.1052631579 | AH33: １３保健衛生業 | AK33: 0 | AL33: 0 | AM33: 0 | AN33: － | AO33: 67 | AP33: 54 | AQ33: -13 | AR33: -0.1940298507 | AS33: １３保健衛生業 | AV33: 0 | AW33: 0 | AX33: 0 | AY33: － | AZ33: 15 | BA33: 16 | BB33: 1 | BC33: 0.06666666667
B34: 02社会福祉施設 | D34: 0 | E34: 0 | F34: 0 | G34: － | H34: 70 | I34: 134 | J34: 64 | K34: 0.9142857143 | M34: 02社会福祉施設 | O34: 0 | P34: 0 | Q34: 0 | R34: － | S34: 66 | T34: 63 | U34: -3 | V34: -0.04545454545 | X34: 02社会福祉施設 | Z34: 0 | AA34: 0 | AB34: 0 | AC34: － | AD34: 27 | AE34: 28 | AF34: 1 | AG34: 0.03703703704 | AI34: 02社会福祉施設 | AK34: 0 | AL34: 0 | AM34: 0 | AN34: － | AO34: 41 | AP34: 37 | AQ34: -4 | AR34: -0.09756097561 | AT34: 02社会福祉施設 | AV34: 0 | AW34: 0 | AX34: 0 | AY34: － | AZ34: 10 | BA34: 6 | BB34: -4 | BC34: -0.4
A35: １４接客娯楽業 | D35: 0 | E35: 0 | F35: 0 | G35: － | H35: 42 | I35: 88 | J35: 46 | K35: 1.095238095 | L35: １４接客娯楽業 | O35: 0 | P35: 0 | Q35: 0 | R35: － | S35: 50 | T35: 45 | U35: -5 | V35: -0.1 | W35: １４接客娯楽業 | Z35: 0 | AA35: 0 | AB35: 0 | AC35: － | AD35: 11 | AE35: 12 | AF35: 1 | AG35: 0.09090909091 | AH35: １４接客娯楽業 | AK35: 0 | AL35: 0 | AM35: 0 | AN35: － | AO35: 17 | AP35: 26 | AQ35: 9 | AR35: 0.5294117647 | AS35: １４接客娯楽業 | AV35: 0 | AW35: 0 | AX35: 0 | AY35: － | AZ35: 5 | BA35: 5 | BB35: 0 | BC35: 0
B36: 02飲食店 | D36: 0 | E36: 0 | F36: 0 | G36: － | H36: 24 | I36: 55 | J36: 31 | K36: 1.291666667 | M36: 02飲食店 | O36: 0 | P36: 0 | Q36: 0 | R36: － | S36: 28 | T36: 28 | U36: 0 | V36: 0 | X36: 02飲食店 | Z36: 0 | AA36: 0 | AB36: 0 | AC36: － | AD36: 7 | AE36: 6 | AF36: -1 | AG36: -0.1428571429 | AI36: 02飲食店 | AK36: 0 | AL36: 0 | AM36: 0 | AN36: － | AO36: 10 | AP36: 17 | AQ36: 7 | AR36: 0.7 | AT36: 02飲食店 | AV36: 0 | AW36: 0 | AX36: 0 | AY36: － | AZ36: 2 | BA36: 4 | BB36: 2 | BC36: 1
A37: １５清掃・と畜業 | D37: 0 | E37: 0 | F37: 0 | G37: － | H37: 34 | I37: 62 | J37: 28 | K37: 0.8235294118 | L37: １５清掃・と畜業 | O37: 0 | P37: 0 | Q37: 0 | R37: － | S37: 41 | T37: 37 | U37: -4 | V37: -0.09756097561 | W37: １５清掃・と畜業 | Z37: 0 | AA37: 0 | AB37: 0 | AC37: － | AD37: 7 | AE37: 5 | AF37: -2 | AG37: -0.2857142857 | AH37: １５清掃・と畜業 | AK37: 0 | AL37: 0 | AM37: 0 | AN37: － | AO37: 14 | AP37: 20 | AQ37: 6 | AR37: 0.4285714286 | AS37: １５清掃・と畜業 | AV37: 0 | AW37: 0 | AX37: 0 | AY37: － | AZ37: 3 | BA37: 0 | BB37: -3 | BC37: -1
C38: (01-01ビルメン) | D38: 0 | E38: 0 | F38: 0 | G38: － | H38: 21 | I38: 25 | J38: 4 | K38: 0.1904761905 | N38: (01-01ビルメン) | Q38: 0 | R38: － | S38: 27 | T38: 19 | U38: -8 | V38: -0.2962962963 | Y38: (01-01ビルメン) | AB38: 0 | AC38: － | AD38: 4 | AE38: 1 | AF38: -3 | AG38: -0.75 | AJ38: (01-01ビルメン) | AM38: 0 | AN38: － | AO38: 5 | AP38: 5 | AQ38: 0 | AR38: 0 | AU38: (01-01ビルメン) | AX38: 0 | AY38: － | AZ38: 2 | BA38: 0 | BB38: -2 | BC38: -1
A39: １６官公署 | D39: 0 | E39: 0 | F39: 0 | G39: － | H39: 0 | I39: 2 | J39: 2 | K39: ∞ | L39: １６官公署 | O39: 0 | P39: 0 | Q39: 0 | R39: － | S39: 0 | T39: 0 | U39: 0 | V39: － | W39: １６官公署 | Z39: 0 | AA39: 0 | AB39: 0 | AC39: － | AD39: 0 | AE39: 0 | AF39: 0 | AG39: － | AH39: １６官公署 | AK39: 0 | AL39: 0 | AM39: 0 | AN39: － | AO39: 0 | AP39: 1 | AQ39: 1 | AR39: ∞ | AS39: １６官公署 | AV39: 0 | AW39: 0 | AX39: 0 | AY39: － | AZ39: 0 | BA39: 1 | BB39: 1 | BC39: ∞
A40: １７その他の事業 | D40: 2 | E40: 0 | F40: -2 | G40: -1 | H40: 39 | I40: 66 | J40: 27 | K40: 0.6923076923 | L40: １７その他の事業 | O40: 1 | P40: 0 | Q40: -1 | R40: -1 | S40: 36 | T40: 34 | U40: -2 | V40: -0.05555555556 | W40: １７その他の事業 | Z40: 0 | AA40: 0 | AB40: 0 | AC40: － | AD40: 8 | AE40: 13 | AF40: 5 | AG40: 0.625 | AH40: １７その他の事業 | AK40: 1 | AL40: 0 | AM40: -1 | AN40: -1 | AO40: 17 | AP40: 14 | AQ40: -3 | AR40: =IF(AO40=0,IF(AP40=0,"－","∞"),AQ40/AO40) -> -0.1764705882 | AS40: １７その他の事業 | AV40: 0 | AW40: 1 | AX40: 1 | AY40: ∞ | AZ40: 9 | BA40: 5 | BB40: -4 | BC40: -0.4444444444
A41: 合計 | D41: 14 | E41: 10 | F41: -4 | G41: -0.2857142857 | H41: 1529 | I41: 1462 | J41: =I41-H41 -> -67 | K41: -0.04381948986 | L41: 合計 | O41: 5 | P41: 4 | Q41: =P41-O41 -> -1 | R41: -0.2 | S41: 683 | T41: 640 | U41: =T41-S41 -> -43 | V41: -0.06295754026 | W41: 合計 | Z41: 4 | AA41: 3 | AB41: -1 | AC41: -0.25 | AD41: 283 | AE41: 298 | AF41: 15 | AG41: 0.05300353357 | AH41: 合計 | AK41: 5 | AL41: 1 | AM41: =AL41-AK41 -> -4 | AN41: -0.8 | AO41: 452 | AP41: 430 | AQ41: -22 | AR41: =IF(AO41=0,IF(AP41=0,"－","∞"),AQ41/AO41) -> -0.04867256637 | AS41: 合計 | AV41: 0 | AW41: 2 | AX41: 2 | AY41: ∞ | AZ41: 111 | BA41: 94 | BB41: -17 | BC41: -0.1531531532

Sheet 派遣業(コロナ除く)
A1: 令和7年 業種別署別 派遣先労働災害発生状況
A2: （新型コロナウイルス感染症を除く）
M3: 死傷災害：令和7年12月末日現在
D4: 合計 | F4: 宮崎署 | H4: 延岡署 | J4: 都城署 | L4: 日南署
A5: ０１製造業 | D5: =SUM(F5+H5+J5+L5) -> 13 | E5: =SUM(G5+I5+K5+M5) -> 0 | F5: 11 | G5: 0 | H5: 1 | I5: 0 | J5: 1 | K5: 0 | L5: 0 | M5: 0
B6: 01食料品 | D6: 8 | E6: 0 | F6: 7 | G6: 0 | H6: 0 | I6: 0 | J6: 1 | K6: 0 | L6: 0 | M6: 0
B7: 04木材・木製品 | D7: 1 | E7: 0 | F7: 1 | G7: 0 | H7: 0 | I7: 0 | J7: 0 | K7: 0 | L7: 0 | M7: 0
B8: 09窯業土石 | D8: 0 | E8: 0 | F8: 0 | G8: 0 | H8: 0 | I8: 0 | J8: 0 | K8: 0 | L8: 0 | M8: 0
B9: 12金属製品 | D9: 0 | E9: 0 | F9: 0 | G9: 0 | H9: 0 | I9: 0 | J9: 0 | K9: 0 | L9: 0 | M9: 0
B10: 13～15機械器具 | D10: 1 | E10: 0 | F10: 1 | G10: 0 | H10: 0 | I10: 0 | J10: 0 | K10: 0 | L10: 0 | M10: 0
A11: ０２鉱業 | D11: 0 | E11: 0 | F11: 0 | G11: 0 | H11: 0 | I11: 0 | J11: 0 | K11: 0 | L11: 0 | M11: 0
A12: ０３建設業 | D12: 0 | E12: 0 | F12: 0 | G12: 0 | H12: 0 | I12: 0 | J12: 0 | K12: 0 | L12: 0 | M12: 0
B13: 01土木工事 | D13: 0 | E13: 0 | F13: 0 | G13: 0 | H13: 0 | I13: 0 | J13: 0 | K13: 0 | L13: 0 | M13: 0
B14: 02建築工事 | D14: 0 | E14: 0 | F14: 0 | G14: 0 | H14: 0 | I14: 0 | J14: 0 | K14: 0 | L14: 0 | M14: 0
C15: (02-02木造建築) | D15: 0 | F15: 0 | H15: 0 | J15: 0 | L15: 0
A16: ０４運輸交通業 | D16: 2 | E16: 0 | F16: 0 | G16: 0 | H16: 0 | I16: 0 | J16: 2 | K16: 0 | L16: 0 | M16: 0
B17: 03道路貨物運送 | D17: 2 | E17: 0 | F17: 0 | G17: 0 | H17: 0 | I17: 0 | J17: 2 | K17: 0 | L17: 0 | M17: 0
A18: ０５貨物取扱業 | D18: 0 | E18: 0 | F18: 0 | G18: 0 | H18: 0 | I18: 0 | J18: 0 | K18: 0 | L18: 0 | M18: 0
A19: ０６農林業 | D19: 0 | E19: 0 | F19: 0 | G19: 0 | H19: 0 | I19: 0 | J19: 0 | K19: 0 | L19: 0 | M19: 0
B20: 02林業 | D20: 0 | E20: 0 | F20: 0 | G20: 0 | H20: 0 | I20: 0 | J20: 0 | K20: 0 | L20: 0 | M20: 0
A21: ０７畜産・水産業 | D21: =SUM(F21+H21+J21+L21) -> 0 | E21: 0 | F21: 0 | G21: 0 | H21: 0 | I21: 0 | J21: 0 | K21: 0 | L21: 0 | M21: 0
A22: ０８商業 | D22: 7 | E22: 0 | F22: 5 | G22: 0 | H22: 0 | I22: 0 | J22: 1 | K22: 0 | L22: 1 | M22: 0
B23: 02小売業 | D23: 5 | E23: 0 | F23: 3 | G23: 0 | H23: 0 | I23: 0 | J23: 1 | K23: 0 | L23: 1 | M23: 0
A24: ０９金融・広告業 | D24: 0 | E24: 0 | F24: 0 | G24: 0 | H24: 0 | I24: 0 | J24: 0 | K24: 0 | L24: 0 | M24: 0
A25: １０映画・演劇業 | D25: 0 | E25: 0 | F25: 0 | G25: 0 | H25: 0 | I25: 0 | J25: 0 | K25: 0 | L25: 0 | M25: 0
A26: １１通信業 | D26: 0 | E26: 0 | F26: 0 | G26: 0 | H26: 0 | I26: 0 | J26: 0 | K26: 0 | L26: 0 | M26: 0
A27: １２教育・研究業 | D27: 0 | E27: 0 | F27: 0 | G27: 0 | H27: 0 | I27: 0 | J27: 0 | K27: 0 | L27: 0 | M27: 0
A28: １３保健衛生業 | D28: 7 | E28: 0 | F28: 4 | G28: 0 | H28: 0 | I28: 0 | J28: 3 | K28: 0 | L28: 0 | M28: 0
B29: 02社会福祉施設 | D29: 2 | E29: 0 | F29: 2 | G29: 0 | H29: 0 | I29: 0 | J29: 0 | K29: 0 | L29: 0 | M29: 0
A30: １４接客娯楽業 | D30: 1 | E30: 0 | F30: 1 | G30: 0 | H30: 0 | I30: 0 | J30: 0 | K30: 0 | L30: 0 | M30: 0
B31: 02飲食店 | D31: =SUM(F31+H31+J31+L31) -> 0 | E31: =SUM(G31+I31+K31+M31) -> 0 | F31: 0 | G31: 0 | H31: 0 | I31: 0 | J31: 0 | K31: 0 | L31: 0 | M31: 0
A32: １５清掃・と畜業 | D32: 3 | E32: 0 | F32: 2 | G32: 0 | H32: 0 | I32: 0 | J32: 1 | K32: 0 | L32: 0 | M32: 0
C33: (01-01ビルメン) | D33: 1 | F33: 1 | H33: 0 | J33: 0 | L33: 0
A34: １６官公署 | D34: 0 | E34: 0 | F34: 0 | G34: 0 | H34: 0 | I34: 0 | J34: 0 | K34: 0 | L34: 0 | M34: 0
A35: １７その他の事業 | D35: 1 | E35: 0 | F35: 1 | G35: 0 | H35: 0 | I35: 0 | J35: 0 | K35: 0 | L35: 0 | M35: 0
A36: 合計 | D36: =SUM(F36+H36+J36+L36) -> 34 | E36: =SUM(G36+I36+K36+M36) -> 0 | F36: =SUM(F5+F11+F12+F16+F18+F19+F21+F22+F24+F25+F26+F27+F28+F30+F32+F34+F35) -> 24 | G36: 0 | H36: 1 | I36: 0 | J36: 8 | K36: 0 | L36: 1 | M36: 0

Sheet 外国人(コロナ除く)
A1: 令和7年 業種別署別 外国人労働災害発生状況
A2: （新型コロナウイルス感染症を除く）
K3: 死傷災害：令和7年12月末日現在
B4: 合計 | D4: 宮崎署 | F4: 延岡署 | H4: 都城署 | J4: 日南署
A5: 中国（香港等を含む） | B5: =SUM(D5+F5+H5+J5) -> 4 | C5: =SUM(E5+G5+I5+K5) -> 0 | D5: 0 | E5: 0 | F5: 1 | G5: 0 | H5: 3 | I5: 0 | J5: 0 | K5: 0
A6: 韓国 | B6: =SUM(D6+F6+H6+J6) -> 0 | C6: =SUM(E6+G6+I6+K6) -> 0 | D6: 0 | E6: 0 | F6: 0 | G6: 0 | H6: 0 | I6: 0 | J6: 0 | K6: 0
A7: 台湾 | B7: =SUM(D7+F7+H7+J7) -> 0 | C7: 0 | D7: 0 | E7: 0 | F7: 0 | G7: 0 | H7: 0 | I7: 0 | J7: 0 | K7: 0
A8: フィリピン | B8: 2 | C8: 0 | D8: 0 | E8: 0 | F8: 0 | G8: 0 | H8: 2 | I8: 0 | J8: 0 | K8: 0
A9: タイ | B9: 0 | C9: 0 | D9: 0 | E9: 0 | F9: 0 | G9: 0 | H9: 0 | I9: 0 | J9: 0 | K9: 0
A10: ベトナム | B10: 17 | C10: 0 | D10: 12 | E10: 0 | F10: 0 | G10: 0 | H10: 5 | I10: 0 | J10: 0 | K10: 0
A11: インドネシア | B11: 14 | C11: 0 | D11: 3 | E11: 0 | F11: 3 | G11: 0 | H11: 6 | I11: 0 | J11: 2 | K11: 0
A12: マレーシア | B12: 0 | C12: 0 | D12: 0 | E12: 0 | F12: 0 | G12: 0 | H12: 0 | I12: 0 | J12: 0 | K12: 0
A13: ミャンマー | B13: 1 | C13: 0 | D13: 0 | E13: 0 | F13: 1 | G13: 0 | H13: 0 | I13: 0 | J13: 0 | K13: 0
A14: カンボジア | B14: 0 | C14: 0 | D14: 0 | E14: 0 | F14: 0 | G14: 0 | H14: 0 | I14: 0 | J14: 0 | K14: 0
A15: ラオス | D15: 0 | E15: 0 | F15: 0 | G15: 0 | H15: 0 | I15: 0 | J15: 0 | K15: 0
A16: シンガポール | B16: 0 | C16: 0 | D16: 0 | E16: 0 | F16: 0 | G16: 0 | H16: 0 | I16: 0 | J16: 0 | K16: 0
A17: ブルネイ | D17: 0 | E17: 0 | F17: 0 | G17: 0 | H17: 0 | I17: 0 | J17: 0 | K17: 0
A18: インド | B18: 0 | C18: 0 | D18: 0 | E18: 0 | F18: 0 | G18: 0 | H18: 0 | I18: 0 | J18: 0 | K18: 0
A19: バングラデシュ | B19: 0 | C19: 0 | D19: 0 | E19: 0 | F19: 0 | G19: 0 | H19: 0 | I19: 0 | J19: 0 | K19: 0
A20: パキスタン | B20: 0 | C20: 0 | D20: 0 | E20: 0 | F20: 0 | G20: 0 | H20: 0 | I20: 0 | J20: 0 | K20: 0
A21: スリランカ | B21: 1 | C21: 0 | D21: 0 | E21: 0 | F21: 1 | G21: 0 | H21: 0 | I21: 0 | J21: 0 | K21: 0
A22: ネパール | B22: 3 | C22: 0 | D22: 1 | E22: 0 | F22: 1 | G22: 0 | H22: 1 | I22: 0 | J22: 0 | K22: 0
A23: モンゴル | B23: 0 | C23: 0 | D23: 0 | E23: 0 | F23: 0 | G23: 0 | H23: 0 | I23: 0 | J23: 0 | K23: 0
A24: イラン | B24: 0 | C24: 0 | D24: 0 | E24: 0 | F24: 0 | G24: 0 | H24: 0 | I24: 0 | J24: 0 | K24: 0
A25: トルコ | D25: 0 | E25: 0 | F25: 0 | G25: 0 | H25: 0 | I25: 0 | J25: 0 | K25: 0
A26: イスラエル | D26: 0 | E26: 0 | F26: 0 | G26: 0 | H26: 0 | I26: 0 | J26: 0 | K26: 0
A27: パレスチナ | D27: 0 | E27: 0 | F27: 0 | G27: 0 | H27: 0 | I27: 0 | J27: 0 | K27: 0
A28: アメリカ | B28: 1 | C28: 0 | D28: 0 | E28: 0 | F28: 0 | G28: 0 | H28: 1 | I28: 0 | J28: 0 | K28: 0
A29: カナダ | B29: 0 | C29: 0 | D29: 0 | E29: 0 | F29: 0 | G29: 0 | H29: 0 | I29: 0 | J29: 0 | K29: 0
A30: ブラジル | B30: 0 | C30: 0 | D30: 0 | E30: 0 | F30: 0 | G30: 0 | H30: 0 | I30: 0 | J30: 0 | K30: 0
A31: ペルー | B31: 1 | C31: 0 | D31: 0 | E31: 0 | F31: 0 | G31: 0 | H31: 1 | I31: 0 | J31: 0 | K31: 0
A32: ボリビア | D32: 0 | E32: 0 | F32: 0 | G32: 0 | H32: 0 | I32: 0 | J32: 0 | K32: 0
A33: アルゼンチン | B33: 0 | C33: 0 | D33: 0 | E33: 0 | F33: 0 | G33: 0 | H33: 0 | I33: 0 | J33: 0 | K33: 0
A34: コロンビア | D34: 0 | E34: 0 | F34: 0 | G34: 0 | H34: 0 | I34: 0 | J34: 0 | K34: 0
A35: パラグアイ | D35: 0 | E35: 0 | F35: 0 | G35: 0 | H35: 0 | I35: 0 | J35: 0 | K35: 0
A36: メキシコ | C36: 0 | D36: 0 | E36: 0 | F36: 0 | G36: 0 | H36: 0 | I36: 0 | J36: 0 | K36: 0
A37: チリ | D37: 0 | E37: 0 | F37: 0 | G37: 0 | H37: 0 | I37: 0 | J37: 0 | K37: 0
A38: イギリス | C38: 0 | D38: 0 | E38: 0 | F38: 0 | G38: 0 | H38: 0 | I38: 0 | J38: 0 | K38: 0
A39: フランス | C39: 0 | D39: 0 | E39: 0 | F39: 0 | G39: 0 | H39: 0 | I39: 0 | J39: 0 | K39: 0
A40: ロシア | C40: 0 | D40: 0 | E40: 0 | F40: 0 | G40: 0 | H40: 0 | I40: 0 | J40: 0 | K40: 0
A41: ドイツ | C41: 0 | D41: 0 | E41: 0 | F41: 0 | G41: 0 | H41: 0 | I41: 0 | J41: 0 | K41: 0
A42: ルーマニア | C42: 0 | D42: 0 | E42: 0 | F42: 0 | G42: 0 | H42: 0 | I42: 0 | J42: 0 | K42: 0
A43: イタリア | C43: 0 | D43: 0 | E43: 0 | F43: 0 | G43: 0 | H43: 0 | I43: 0 | J43: 0 | K43: 0
A44: ウクライナ | C44: 0 | D44: 0 | E44: 0 | F44: 0 | G44: 0 | H44: 0 | I44: 0 | J44: 0 | K44: 0
A45: スペイン | C45: 0 | D45: 0 | E45: 0 | F45: 0 | G45: 0 | H45: 0 | I45: 0 | J45: 0 | K45: 0
A46: アイルランド | D46: 0 | E46: 0 | F46: 0 | G46: 0 | H46: 0 | I46: 0 | J46: 0 | K46: 0
A47: スウェーデン | D47: 0 | E47: 0 | F47: 0 | G47: 0 | H47: 0 | I47: 0 | J47: 0 | K47: 0
A48: オランダ | C48: 0 | D48: 0 | E48: 0 | F48: 0 | G48: 0 | H48: 0 | I48: 0 | J48: 0 | K48: 0
A49: スイス | D49: 0 | E49: 0 | F49: 0 | G49: 0 | H49: 0 | I49: 0 | J49: 0 | K49: 0
A50: ポーランド | C50: 0 | D50: 0 | E50: 0 | F50: 0 | G50: 0 | H50: 0 | I50: 0 | J50: 0 | K50: 0
A51: デンマーク | D51: 0 | E51: 0 | F51: 0 | G51: 0 | H51: 0 | I51: 0 | J51: 0 | K51: 0
A52: ノルウェー | D52: 0 | E52: 0 | F52: 0 | G52: 0 | H52: 0 | I52: 0 | J52: 0 | K52: 0
A53: ベルギー | C53: 0 | D53: 0 | E53: 0 | F53: 0 | G53: 0 | H53: 0 | I53: 0 | J53: 0 | K53: 0
A54: ハンガリー | D54: 0 | E54: 0 | F54: 0 | G54: 0 | H54: 0 | I54: 0 | J54: 0 | K54: 0
A55: チェコ | D55: 0 | E55: 0 | F55: 0 | G55: 0 | H55: 0 | I55: 0 | J55: 0 | K55: 0
A56: ガーナ | D56: 0 | E56: 0 | F56: 0 | G56: 0 | H56: 0 | I56: 0 | J56: 0 | K56: 0
A57: ナイジェリア | C57: 0 | D57: 0 | E57: 0 | F57: 0 | G57: 0 | H57: 0 | I57: 0 | J57: 0 | K57: 0
A58: エジプト | C58: 0 | D58: 0 | E58: 0 | F58: 0 | G58: 0 | H58: 0 | I58: 0 | J58: 0 | K58: 0
A59: オーストラリア | C59: 0 | D59: 0 | E59: 0 | F59: 0 | G59: 0 | H59: 0 | I59: 0 | J59: 0 | K59: 0
A60: ニュージーランド | C60: 0 | D60: 1 | E60: 0 | F60: 0 | G60: 0 | H60: 0 | I60: 0 | J60: 0 | K60: 0
A61: その他 | C61: 0 | D61: 0 | E61: 0 | F61: 0 | G61: 0 | H61: 1 | I61: 0 | J61: 0 | K61: 0
A62: 令和7年合計 | B62: =SUM(D62+F62+H62+J62) -> 46 | C62: =SUM(E62+G62+I62+K62) -> 0 | D62: =SUM(D5:D61) -> 17 | F62: =SUM(F5:F61) -> 7 | H62: =SUM(H5:H61) -> 20 | J62: =SUM(J5:J61) -> 2
A63: 令和6年合計 | B63: =SUM(D63+F63+H63+J63) -> 35 | C63: =SUM(E63+G63+I63+K63) -> 0 | D63: 15 | E63: 0 | F63: 3 | G63: 0 | H63: 15 | I63: 0 | J63: 2 | K63: 0
A64: 増 減 | B64: =B62-B63 -> 11 | C64: =C62-C63 -> 0 | D64: 2 | E64: 0 | F64: 4 | G64: 0 | H64: 5 | I64: 0 | J64: 0 | K64: 0
H65: （ ）の数値は死亡災害件数
